Workbook

Sheet INTRO
B2: INCOME TAX ASSESMENT FOR FINANCIAL YEAR 2025-26
B3: HOW TO USE
C4: राजस्थान राज्य कर्मचारियों (विशेषतः शिक्षा विभाग के कार्मिक ) के लिए FY 2025-26 के लिए आयकर आकलन बाबत इस UTILITY का प्रयोग किया जा सकता है । FILE को SAVE करने के लिए अपनी सुविधा से नाम देकर SAVE AS से Excel Macro- Enable Workbook के रूप में Save करें। file को open करते समय Enable Macro करें।यह excel utility केवल मात्र राज्य कार्मिको के income tax assesment के लिए सहायतार्थ तैयार की गई है ।यद्यपि इसे तैयार करने में पूर्ण सावधानी बरती गई है फिर भी किसी भूल चूक के लिए तैयार कर्ता उत्तरदायी नहीं है । किसी भी गणना के लिए त्रुटि पाए जाने पर आयकर विभाग के नियम मान्य होंगे किसी प्रकार की तकनीकी कमी पाए जाने पर नीचे दिये गए EMAIL द्वारा अवगत कराने का श्रम करावे।(PLEASE USE LATEST VERSION OF THAT IS OFFICE 2010 AND ABOVE FOR BEST RESULT)
B5: 1. First Enable Macro whenever open file 2 Save as always in Excel Macro-Enabled Workbook (*.xlsm)
B6: 1.Gen Info Sheet :- | C6: Gen Info शीट में कार्मिक की सामान्य सूचना, भरना है।शीट में महत्वपूर्ण स्थान पर आवश्यक निर्देश दिये गए है।वेतन से income tax कटौती को आपको manually MONTHLY भरना है।
B7: 2.PAY & Allowances Sheet :- | C7: सर्वप्रथम माह मार्च 2025 का मूल वेतन F5 सेल मे लिखना है ।यदि वार्षिक वेतन वृद्धि को छोडकर acp या अन्य कारणो किसी माह मे वेतन मे बदलाव हुआ है तो सेल J2 मे माह क्रमांक और सेल M2 मे मूल वेतन लिखे।अन्य लागू भत्तो के संबन्धित सेल मे YES का चयन कर ड्रॉपडाउन या mannual डाटा भरे। यदि किसी माह में Fix वेतन मिला है तो सेल L12 में YES चयन कर जिस माह मे FIX PAY मिला है उसके आगे YES अन्यथा NO का चयन करें।
B8: 3. Deductions SHEET | C8: Deduction और Investment की एंट्री इस शीट मे करनी है ।अगर किसी प्रकार की अन्य आय को शामिल करना चाहते है तो CELL E6 मे एंट्री करनी है। SI कटौती ,80CCD1(B),RGHS एवं BONUS से संबन्धित विशेष सुविधा शीट के अंत मे आवश्यक दिशानिर्देश सहित दी गई है।
B9: 4. HRA SHEET | C9: यदि आप HRA छूट के लिए पात्र है तो सेल F5 मे आप द्वारा भुगतान किए गए किराये की राशि भरे ।complete year के लिए HRA छूट के लिए पात्र नहीं है और Partially HRA की छूट लेना चाहते है तो इस शीट में जिन महीनों के लिए छूट प्राप्त करना चाहते है उनके सामने "YES" चुने और Data Entry Sheet मे Dropdown से "Partially" चुने तथा Data Entry Sheet में B15 cell मे आप द्वारा भुगतान किए गए किराये की राशि भरे। नियमानुसार छूट Auto generate हो जाएगी।आप द्वारा अधिकतम छूट के लिए कितने किराए की रसीद आवश्यक है भी Auto Generate हो जाएगी।
B10: 5. Salary Sheet | C10: सर्वप्रथम Refresh Salary बटन पर क्लिक कर आप द्वारा Data Entry शीट में भरे data अनुसार सैलरी शीट तैयार हो जाएगी ।यदि कोई बदलाव अपेक्षित है तो शीट मे आपकी आवश्यकता अनुसार कर सकते है।Refresh Salary बटन को क्लिक करने पर पुनः प्रारम्भिक अवस्था मे आ जाएगी । WHITE सेल में आवश्यकता अनुसार प्रविष्टि कर सकते है ।अन्य भत्ते एवं कटौती आप SALARY SHEET में MANUALLY कर सकते है।इसका प्रिंट लेना है ।
B11: 6. Assesment sheet | C11: Assesment Sheet Auto generate है।आप OLD REGIME या NEW REGIME में से किसी एक का चुनाव option बटन करे और आपके चुनाव अनुसार Assesment form रिपोर्ट तैयार प्राप्त करे । OLD REGIME या NEW REGIME में तुलनात्मक कौनसा चुनाव आपके लिए बेहतर की रिपोर्ट भी आप COMAPARISSION के द्वारा देख सकते है।इसका प्रिंट लेना है।
B12: 7. Form 16 | C12: केवल गणना उदेश्य के लिए है।कृपया Traces (https://www.tdscpc.gov.in) ls QkWeZ 16 download कर प्रयोग मे लेवे ।
B13: 8. us 89(1) sheet | C13: इस शीट से संबन्धित निर्देश शीट पर दिये गए है
B14: 9. Form 10E | C14: auto generated
B15: 10. NSC INT. | C15: आप ने यदि NSC में निवेश कर रखा है तो प्र्तिवर्ष अर्जित ब्याज की गणना के लिए इस शीट का प्रयोग कर सकते है।आप ने जिस अवधि में NSC खरीदा है उसके सबंधित कॉलम में जिस अवधि का ब्याज गणना करना चाहते है NSC की राशि लिखे ।समस्त ब्याज का योग N15 cell मे Auto generate हो जाएगी जिसकी प्रविष्टि Data Entry Sheet में D40 cell में करे।
B16: 11 DDO TDS Monitor Sheet | C16: DDO के लिए 100 कार्मिकों तक की संख्या के लिए TDS कटौती हेतु monitoring के लिए काम मे ली जा सकती है ।
B17: Disclaimer: - | C17: All care has been taken to keep the information upto date and correct and is for educational purpose only. You are encouraged to consult your Accountant or Advisor before taking any decesion based on this calculator
C19: सुधार हेतु सुझाव आमंत्रित है
C25: joshihansraj72@gmail.com
B28: Disclaimer: - | C28: All care has been taken to keep the information upto date and correct and is for educational purpose only. You are encouraged to consult your Accountant or Advisor before taking any decesion based on this calculator
B29: Created on 05-10-2025

Sheet Gen Info
B2: INCOME TAX ASSESMENT FOR FINANCIAL YEAR 2025-26
R3: SI PREMIUM FROM SALARY
B4: GENERAL INFORMATION | R4: PAY RANGE | T4: 2018-03-01 | U4: 2020-03-01
B5: NAME OF EMPLOYEE | C5: HANS RAJ JOSHI | E5: EMPLOYEE ID | F5: RJGA999999999999 | R5: UPTO 22000 | T5: 500 | U5: 800
B6: Designation | C6: Principal | E6: OFFICE | F6: GOVT SENIOR SECONDARY SCHOOL RAJPURA PIPERAN,SRI GANGANAGAR | R6: 22001 TO 28500 | T6: 700 | U6: 1200
B7: CADER | C7: State Service | E7: PAY LEVAL | F7: L-16 | R7: 28501TO 46500 | T7: 1300 | U7: 2200
B8: Mobile No | E8: DOB | R8: 46501 TO 72000 | T8: 1800 | U8: 3000
B9: PAN NO | C9: XXXXX1234X | E9: DDO NAME | F9: HANS RAJ JOSHI | R9: ABOVE 72000 | T9: 3000 | U9: 5000
B10: TAN NO | E10: DDO FATHER'S NAME
B11: क्या आपकी नियुक्ति 01-01-2004 के बाद से है | C11: No | E11: TAX DEDUCTOR'S DESIGNATION | F11: PRINCIPAL | R11: MAXIMUM | T11: 4000 | U11: 7000
B12: आप प्रोबेशनरी ट्रेनी है तो Yes" नहीं तो "No" चुने | C12: No | E12: TAX DEDUCTOR'S OFFICE ADDRESS | F12: GOVT SENIOR SECONDARY SCHOOL RAJPURA PIPERAN,SRI GANGANAGAR
B13: क्या आप चिकित्सा विभाग से है | E13: क्या NPA देय है | F13: YES
B15: DISCLAIMER :---यद्यपि इस आयकर आकलन प्रोग्राम तैयार करने में पूर्ण सावधानी बरती गई है फिर भी किसी भूल चूक के लिए तैयार कर्ता उत्तरदायी नहीं है अंतिम रूप आयकर विभाग के नियम लागू एवं मान्य होंगे। You are encouraged to consult your Accountant or Advisor before taking any decesion based on this calculator

Sheet Pay & Allowances
W2: 1
E3: Pay & Allowancess Details | W3: 2
W4: 3
C5: मूल वेतन (मार्च 2025 का) F | F5: 63100 | I5: मूल वेतन में परिवर्तन (एसीपी या अन्य कारण ,INCREMENT के अलावा) का माह क्रमांक चयन करें अन्यथा खाली छोड़ें | W5: 4
C6: ( 7वें वेतन आयोग के अनुसार ) | I6: माह क्रमांक | L6: मूल वेतन | M6: 89900 | W6: 5
W7: 6
C8: HRA का भुगतान उठाया है तो "Yes " अन्यथा "No" ड्रॉपडाउन से चुने (HRA rate updated as per order dt 30-10-2024 ) | G8: SURRENDER OF PL का भुगतान उठाया है तो "Yes",अन्यथा "No" चुने व जिस माह में भुगतान लिया है का क्रमांक चुने | L8: बोनस मिला है तो "Yes" अन्यथा "No" चुने और कितने माह का मिला है चयन करें | W8: 7
C9: Yes | D9: HRA दर | E9: 0.1 | G9: YES | H9: माह | I9: 10 | L9: No | M9: माह | N9: 12 | W9: 8
W10: 9
C11: CCA लागू है तो "Yes " अन्यथा "No" ड्रॉपडाउन से चुने और CITY SELECT करें | H11: धारा 10(14) के अन्तर्गत अन्य भत्ते | I11: मनोरंजन भत्ता धारा 16(iii) के अंतर्गत | J11: व्यवसाय कर धारा 16(iii) के अंतर्गत | L11: वर्ष में आपको FIX PAY वेतन मिला है तो "YES" अन्यथा "NO"का चयन करें | W11: 10
C12: No | D12: SELECT CITY | E12: KOTA | L12: NO | W12: 11
L13: FIX PAY MONTH | W13: 12 | Y13: CITY | Z13: >23100 | AA13: <=23100
C14: Value of perquisites u/s 17(2) (as per Form No. 12BA, wherever applicable) | L14: MONTHS | N14: "YES"/NO | Y14: JAIPUR(U) | Z14: 1000 | AA14: 620
C15: Profits in lieu of salary under section 17(3) (as per Form No. 12BA, wherever applicable) | L15: 2025-03-01 | N15: NO | Y15: JODHPUR | Z15: 620 | AA15: 320
L16: 2025-04-01 | N16: NO | Y16: BIKANER | Z16: 620 | AA16: 320
C17: यदि आपको चालू वित्त वर्ष में कोई Arrear मिला है तो Arrear 1/Arrear 2 में दर्ज करें | L17: 2025-05-01 | N17: NO | Y17: AJMER | Z17: 620 | AA17: 320
C18: Arrear 1 | F18: Arrear 2 | L18: 2025-06-01 | N18: NO | Y18: KOTA | Z18: 620 | AA18: 320
C19: Amount | D19: TDS | E19: NPS/GPF Ded | F19: Amount | G19: TDS | H19: NPS/GPF Ded | L19: 2025-07-01 | N19: NO
L20: 2025-08-01 | N20: NO
L21: 2025-09-01 | N21: NO
C22: यदि आपने अन्य कोई एरिअर का भुगतान उठाया है तो Salary शीट के अंतिम Unlocked पंक्ति में लिखे | L22: 2025-10-01 | N22: NO
L23: 2025-11-01 | N23: NO
C24: यदि आपने अन्य कोई भत्ता का भुगतान उठाया है तो Salary शीट संबन्धित माह में लिखे | L24: 2025-12-01 | N24: NO
L25: 2026-01-01 | N25: NO
L26: 2026-02-01 | N26: NO

Sheet Deductions
D3: Deductions and Investments Details
B5: वेतन एवं अन्य अतिरिक्त कटौतियों,अन्य आय /जमा राशि एवं छूट का विवरण
A6: OTHER INCOME | B6: अन्य स्रोत से आय (FD पर ब्याज इत्यादि समस्त अन्य आय का योग ) | E6: 0 | G6: समूह दुर्घटना बीमा | Q6: 2100
B7: बचत खाते की जमाराशि पर अर्जित ब्याज धारा (80TTA ) | E7: 0 | G7: जीवन बीमा प्रीमियम -LIC (जो वेतन से काटा गया ) | Q7: 469
B8: वरिष्ठ नागरिकों को बचत खाते एवं स्थायी जमा खाते से प्राप्त ब्याज धारा (80TTB) | G8: धारा 80 C के अंतर्गत अन्य जमा राशि (TAX SAVING BANK FD,MUTUAL FUND,BOND ETC. ) | Q8: 0
B9: गृह सम्पति से आय - किराया | E9: 0 | G9: धारा 80 CCC के अंतर्गत-पेंशन प्लान हेतु अंशदान (एनपीएस के अलावा ) | Q9: 0
B10: गृह कर | E10: 0 | G10: धारा 80 CCD(1B) के अंतर्गत-NPS मे अंशदान
B11: गृह ऋण मूल (जो वेतन से नहीं काटा गया ) | E11: 30000 | G11: धारा 80D -चिकित्सा बीमा प्रीमियम | P11: 1
B12: गृह ऋण ब्याज (जो वेतन से नहीं काटा गया ) | E12: 29000 | G12: धारा 80DD -विकलांग आश्रितों के चिकित्सा उपचार | P12: 5 | U12: 3
B13: जीवन बीमा प्रीमियम -LIC (जो वेतन से नहीं काटा गया ) | E13: 0 | G13: धारा 80DDB -विशिष्ट रोगों के उपचार हेतु | P13: 1
B14: पी.एल.आई . (PLI ) | E14: 14000 | G14: धारा 80E - उच्च शिक्षा हेतु ऋण का ब्याज | Q14: 0
B15: ट्यूशन फीस (Tution Fees) | E15: 0 | G15: धारा 80G -धर्मार्थ संस्थाओं को दिये दान | J15: श्रेणी 100% | M15: श्रेणी - 50% | P15: योग | Q15: =ROUND(N15*50%,0)+K15 -> 0
B16: ULIP/वार्षिक प्लान | E16: 0 | G16: धारा 80 U -स्थायी शारीरिक विकलांगता | P16: 1
B17: राष्ट्रीय बचत पत्र (NSC) | E17: 50000 | G17: धारा 80 GGA -अनुमोदित वैज्ञानिक ,सामाजिक ग्रामीण विकास हेतु दिया गया दान | Q17: 0
B18: राष्ट्रीय बचत पत्र (NSC) से प्राप्त ब्याज | E18: 0 | G18: इक्विटी लिंक सविंग स्कीम में निवेश | Q18: 0
B19: लोक भविष्य निधि (PPF) में निवेश | E19: 0 | G19: स्थगित वार्षिकी | Q19: 0
B20: NOTIFIED BOND OF NABARD में निवेश | E20: 0 | G20: धारा 89 के तहत राहत
B21: सुकन्या समृद्धि योजना में जमा | E21: 0 | G21: वेतन बिल के अलावा जमा कराया गया TDS | Q21: 0
B22: US 80 EE (Home Loan interest for first time house buyer) | E22: 0 | G22: US 80EEA (Home Loan interest for Affordable home buyer .Loan sanction from 01-04-2019)
B24: वेतन से माहवार आयकर कटौती विवरण
B25: MONTH NAME | C25: MARCH | D25: APRIL | E25: MAY | F25: JUNE | H25: JULY | I25: AUGUST | J25: SEPT | K25: OCT | L25: NOV | M25: DEC | N25: JAN | O25: FEB | Q25: अन्य टी.डी.एस.(एरियर,self assesment आदि से) | S25: TOTAL
B26: TDS | C26: 15000 | D26: 15000 | E26: 15000 | F26: 15000 | H26: 15000 | I26: 15000 | J26: 15000 | K26: 15000 | L26: 15000 | M26: 15000 | N26: 15000 | O26: 15000 | Q26: =SUM(Salary!$X$22:$X$29,Q21) -> 0 | S26: =SUM(C26:R26) -> 180000
B27: PER MONTH TDS REQUIRED | D27: =ROUNDUP(Assesment!Q68/12,-1) -> 5980 | H27: =Assesment!B71 -> Income Tax Refundable (Rounded off) | K27: =Assesment!P71 -> 108310
B29: वेतन से माहवार राज्य बीमा कटौती आगे में की दो स्लैब तक अंशदान ,80CCD(1B) SPLIT,RGHS, BONUS का विवरण
C32: यदि आप राज्य बीमा की अंशदान दो स्लैब आगे तक करते है तो "YES" का चयन करे और प्रीमियम भरे अन्यथा "NO" चुने प्रीमियम को खाली छोड़े | F32: YES | H32: अंशदान
H33: 7000

Sheet Salary
O1: आप अपनी आवश्यकता अनुसार सैलरी शीट की UNLOCKED CELL मे बदलाव कर सकते है तथा REFRESH SALARY बटन पर क्लिक कर पुनः प्रारम्भिक स्थिति मे आ सकते है। | AO1: cader
AO2: State Service | AR2: ALLOWANCES
B3: =Master!AI3 -> OFFICE OF THE PRINCIPAL GOVT SENIOR SECONDARY SCHOOL RAJPURA PIPERAN,SRI GANGANAGAR | AO3: Subordinate | AR3: CCA
B4: =Master!AI4 -> SALARY STATEMENT FOR FINANCIAL YEAR 2025-26 | AO4: Ministrial | AR4: WASHING ALLOWANCE
B5: Name of the Employee | F5: =IF('Gen Info'!C5="","",'Gen Info'!C5) -> HANS RAJ JOSHI | L5: Designation | O5: =IF('Gen Info'!$C$6="","",'Gen Info'!$C$6) -> Principal | S5: OFFICE | U5: =IF('Gen Info'!F6="","",'Gen Info'!F6) -> GOVT SENIOR SECONDARY SCHOOL RAJPURA PIPERAN,SRI GANGANAGAR | AB5: DOB | AC5: =IF('Gen Info'!F8="","",'Gen Info'!F8) ->  | AO5: Class IV | AR5: HANDICAPTED ALLWANCE
B6: Employee ID | D6: =IF('Gen Info'!F5="","",'Gen Info'!F5) -> RJGA999999999999 | H6: Cader | I6: =IF('Gen Info'!C7="","",'Gen Info'!C7) -> State Service | L6: Employee Type | N6: =IF('Gen Info'!C12="","",IF('Gen Info'!C12="Yes","Probationary","Regular")) -> Regular | S6: PAN | U6: =IF('Gen Info'!C9="","",'Gen Info'!C9) -> XXXXX1234X | Y6: Pay leval | AA6: =IF('Gen Info'!F7="","",'Gen Info'!F7) -> L-16 | AC6: Pay March | AD6: =Master!$AH$10 -> 63100 | AR6: ANY OTHER
B7: PAY & ALLOWANCES | M7: DEDUCTIONS
B8: SN | C8: MONTH | D8: BASIC | E8: DA | F8: HRA | G8: CCA | H8: Bonus | I8: HANDICAPTED ALLWANCE | J8: =IF('Gen Info'!F13="YES","NPA","ANY OTHER") -> NPA | K8: =IF('Gen Info'!C11="YES","Govt.NPS","ANY OTHER") -> ANY OTHER | L8: Gross Salary | M8: =IF('Gen Info'!C11="","",IF('Gen Info'!C11="YES","GPF-2004","GPF")) -> GPF | O8: SIP | P8: SI LOAN | Q8: GPF LOAN | R8: HBA | S8: HBA INT | T8: LIC | U8: RGHS | V8: GIS | W8: CM CORONA RELIEF | X8: INCOME TAX | Y8: ANY OTHER | Z8: =K8 -> ANY OTHER | AA8: HITKARI NIDHI | AB8: Total Deduction | AC8: Net paid Amount | AD8: BILL NO | AE8: TV NO
B9: 1 | C9: 2 | D9: 3 | E9: 4 | F9: 5 | G9: 6 | H9: 7 | I9: 8 | J9: 9 | K9: 10 | L9: 11 | M9: 12 | N9: 13 | O9: 14 | P9: 15 | Q9: 16 | R9: 17 | S9: 18 | T9: =Master!BA9 -> 0 | U9: 20 | V9: 21 | W9: 22 | X9: 23 | Y9: 24 | AB9: 25 | AC9: 26 | AD9: 27 | AE9: 28
B10: 1 | C10: 2025-03-01 | D10: =Master!AK10 -> 63100 | E10: =Master!D7 -> 33443 | F10: =Master!E7 -> 6310 | G10: =Master!$H$5 -> 0 | J10: =Master!H7 -> 0 | K10: =Master!U7 -> 0 | L10: =ROUND((D10+E10+F10+G10+H10+I10+J10+K10),0) -> 102853 | M10: =Master!S7 -> 4200 | O10: =Master!T7 -> 7000 | T10: =Master!T3 -> 469 | U10: =Master!P7 -> 875 | W10: =Master!W21 -> 0 | X10: =Master!K7 -> 15000 | Z10: =IF(K10="",0,K10) -> 0 | AB10: =M10+N10+O10+P10+Q10+R10+S10+T10+U10+V10+W10+X10+Y10+Z10 -> 27544 | AC10: =L10-AB10 -> 75309 | AK10: SI PREMIUM FROM SALARY
B11: 2 | C11: =DATE(YEAR(C10),MONTH(C10)+1,DAY(C10)) -> 2025-04-01 | D11: =Master!AH11 -> 63100 | E11: =Master!D8 -> 34705 | F11: =Master!E8 -> 6310 | G11: =Master!G8 -> 0 | J11: =Master!H8 -> 0 | K11: =Master!U8 -> 0 | L11: =ROUND((D11+E11+F11+G11+H11+I11+J11+K11),0) -> 104115 | M11: =Master!S8 -> 4200 | O11: =Master!T8 -> 7000 | T11: =T10 -> 469 | U11: =Master!P8 -> 875 | V11: =Deductions!Q6 -> 2100 | X11: =Master!K8 -> 15000 | Y11: =Y10 -> 0 | Z11: =IF(K11="",0,K11) -> 0 | AB11: =M11+N11+O11+P11+Q11+R11+S11+T11+U11+V11+W11+X11+Y11+Z11 -> 29644 | AC11: =L11-AB11 -> 74471 | AK11: PAY RANGE | AM11: 2018-03-01 | AN11: 2020-03-01
B12: 3 | C12: =DATE(YEAR(C11),MONTH(C11)+1,DAY(C11)) -> 2025-05-01 | D12: =Master!AH12 -> 63100 | E12: =Master!D9 -> 34705 | F12: =Master!E9 -> 6310 | G12: =Master!G9 -> 0 | J12: =Master!H9 -> 0 | K12: =Master!U9 -> 0 | L12: 104115 | M12: =Master!S9 -> 4200 | O12: =Master!T9 -> 7000 | T12: 469 | U12: =Master!P9 -> 875 | X12: =Master!K9 -> 15000 | Y12: 0 | Z12: 0 | AB12: 27544 | AC12: 76571 | AK12: UPTO 22000 | AM12: 500 | AN12: 800
B13: 4 | C13: 2025-06-01 | D13: =Master!AH13 -> 63100 | E13: =Master!D10 -> 34705 | F13: =Master!E10 -> 6310 | G13: =Master!G10 -> 0 | J13: =Master!H10 -> 0 | K13: =Master!U10 -> 0 | L13: 104115 | M13: =Master!S10 -> 4200 | O13: =Master!T10 -> 7000 | T13: 469 | U13: =Master!P10 -> 875 | X13: =Master!K10 -> 15000 | Y13: 0 | Z13: 0 | AB13: 27544 | AC13: 76571 | AK13: 22001 TO 28500 | AM13: 700 | AN13: 1200
B14: 5 | C14: 2025-07-01 | D14: =Master!AH14 -> 65000 | E14: =Master!D11 -> 35750 | F14: =Master!E11 -> 6500 | G14: =Master!G11 -> 0 | J14: =Master!H11 -> 0 | K14: =Master!U11 -> 0 | L14: 107250 | M14: =Master!S11 -> 4200 | O14: =Master!T11 -> 7000 | T14: 469 | U14: =Master!P11 -> 875 | X14: =Master!K11 -> 15000 | Y14: 0 | Z14: 0 | AB14: 27544 | AC14: 79706 | AK14: 28501TO 46500 | AM14: 1300 | AN14: 2200
B15: 6 | C15: 2025-08-01 | D15: =Master!AH15 -> 65000 | E15: =Master!D12 -> 35750 | F15: =Master!E12 -> 6500 | G15: =Master!G12 -> 0 | J15: =Master!H12 -> 0 | K15: =Master!U12 -> 0 | L15: 107250 | M15: =Master!S12 -> 4200 | O15: =Master!T12 -> 7000 | T15: 469 | U15: =Master!P12 -> 875 | X15: =Master!K12 -> 15000 | Y15: 0 | Z15: 0 | AB15: 27544 | AC15: 79706 | AK15: 46501 TO 72000 | AM15: 1800 | AN15: 3000
B16: 7 | C16: 2025-09-01 | D16: =Master!AH16 -> 65000 | E16: =Master!D13 -> 35750 | F16: =Master!E13 -> 6500 | G16: =Master!G13 -> 0 | J16: =Master!H13 -> 0 | K16: =Master!U13 -> 0 | L16: 107250 | M16: =Master!S13 -> 4200 | O16: =Master!T13 -> 7000 | T16: 469 | U16: =Master!P13 -> 875 | W16: =Master!W22 -> 0 | X16: =Master!K13 -> 15000 | Y16: 0 | Z16: 0 | AB16: 27544 | AC16: 79706 | AK16: ABOVE 72000 | AM16: 3000 | AN16: 5000
B17: 8 | C17: 2025-10-01 | D17: =Master!AH17 -> 65000 | E17: =Master!D14 -> 37700 | F17: =Master!E14 -> 6500 | G17: =Master!G14 -> 0 | J17: =Master!H14 -> 0 | K17: =Master!U14 -> 0 | L17: 109200 | M17: =Master!S14 -> 4200 | O17: =Master!T14 -> 7000 | T17: 469 | U17: =Master!P14 -> 875 | W17: =Master!W23 -> 0 | X17: =Master!K14 -> 15000 | Y17: 0 | Z17: 0 | AB17: =M17+N17+O17+P17+Q17+R17+S17+T17+U17+V17+W17+X17+Y17+Z17+AA17 -> 27544 | AC17: 81656 | AK17: MAXIMUM | AM17: 4000 | AN17: 7000
B18: 9 | C18: 2025-11-01 | D18: =Master!AH18 -> 65000 | E18: =Master!D15 -> 37700 | F18: =Master!E15 -> 6500 | G18: =Master!G15 -> 0 | J18: =Master!H15 -> 0 | K18: =Master!U15 -> 0 | L18: 109200 | M18: =Master!S15 -> 4200 | O18: =Master!T15 -> 7000 | T18: 469 | U18: =Master!P15 -> 875 | W18: =Master!W24 -> 0 | X18: =Master!K15 -> 15000 | Y18: 0 | Z18: 0 | AB18: =M18+N18+O18+P18+Q18+R18+S18+T18+U18+V18+W18+X18+Y18+Z18+AA18 -> 27544 | AC18: 81656 | AK18: NO DEDUCTION | AM18: 0 | AN18: 0
B19: 10 | C19: 2025-12-01 | D19: =Master!AH19 -> 65000 | E19: =Master!D16 -> 37700 | F19: =Master!E16 -> 6500 | G19: =Master!G16 -> 0 | J19: =Master!H16 -> 0 | K19: =Master!U16 -> 0 | L19: 109200 | M19: =Master!S16 -> 4200 | O19: =Master!T16 -> 7000 | T19: 469 | U19: =Master!P16 -> 875 | W19: =Master!W25 -> 0 | X19: =Master!K16 -> 15000 | Y19: 0 | Z19: 0 | AA19: =Master!T2 -> 500 | AB19: 28044 | AC19: 81156
B20: 11 | C20: 2026-01-01 | D20: =Master!AH20 -> 65000 | E20: =Master!D17 -> 37700 | F20: =Master!E17 -> 6500 | G20: =Master!G17 -> 0 | J20: =Master!H17 -> 0 | K20: =Master!U17 -> 0 | L20: 109200 | M20: =Master!S17 -> 4200 | O20: =Master!T17 -> 7000 | T20: 469 | U20: =Master!P17 -> 875 | W20: =Master!W26 -> 0 | X20: =Master!K17 -> 15000 | Y20: 0 | Z20: 0 | AB20: 27544 | AC20: 81656
B21: 12 | C21: 2026-02-01 | D21: =Master!AH21 -> 65000 | E21: =Master!D18 -> 37700 | F21: =Master!E18 -> 6500 | G21: =Master!G18 -> 0 | J21: =Master!H18 -> 0 | K21: =Master!U18 -> 0 | L21: 109200 | M21: =Master!S18 -> 4200 | O21: =Master!T18 -> 7000 | T21: =T20 -> 469 | U21: =Master!P18 -> 875 | W21: =Master!W27 -> 0 | X21: =Master!K18 -> 15000 | Y21: 0 | Z21: 0 | AB21: 27544 | AC21: 81656
B22: 13 | C22: SURRENDER | D22: =Master!M6 -> 32500 | E22: =Master!N6 -> 18850 | J22: =Master!O4 -> 0 | L22: 51350 | Z22: 0 | AB22: 0 | AC22: 51350
B23: 14 | C23: D.A.ARREAR with Surr.Arr 7/25 TO 9/25 | E23: =Master!K36 -> 5850 | K23: =Master!N36 -> 0 | L23: 5850 | M23: =Master!L36 -> 5850 | N23: =Master!O36 -> 0 | Z23: 0 | AB23: 5850 | AC23: 0
B24: 15 | C24: D.A.ARREAR 1/25 to 3/25 | E24: =Master!K40 -> 3786 | K24: =Master!N39 -> 0 | L24: 3786 | M24: =Master!L40 -> 3786 | Z24: 0 | AB24: 3786 | AC24: 0
B25: 16 | C25: BONUS | H25: =Master!L3 -> 0 | L25: 0 | M25: =Master!M3 -> 0 | Z25: 0 | AB25: 0 | AC25: 0
B26: 17 | C26: ARREAR 1 | J26: =Master!J21 -> 0 | K26: =Master!L23 -> 0 | L26: =ROUND((D26+E26+F26+G26+H26+I26+J26+K26),0) -> 0 | M26: =Master!L21 -> 0 | X26: =Master!K21 -> 0 | Z26: 0 | AB26: 0 | AC26: 0
B27: 18 | C27: ARREAR 2 | J27: =Master!M21 -> 0 | K27: =Master!O23 -> 0 | L27: 0 | M27: =Master!O21 -> 0 | X27: =Master!N21 -> 0 | Z27: 0 | AB27: 0 | AC27: 0
B28: 19 | D28: =Master!AK15 -> 0 | E28: =Master!D19 -> 0 | F28: =Master!E19 -> 0 | G28: =Master!G19 -> 0 | K28: =Master!U19 -> 0 | L28: 0 | M28: =Master!S19 -> 0 | Z28: 0 | AB28: 0 | AC28: 0
B29: 19 | C29: OTHER | L29: 0 | AB29: 0 | AC29: 0
B30: TOTAL | D30: =SUM(D10:D29) -> 804900 | E30: =SUM(E10:E29) -> 461794 | F30: =SUM(F10:F29) -> 77240 | G30: =SUM(G10:G29) -> 0 | H30: =SUM(H10:H29) -> 0 | I30: =I10+I11+I12+I13+I14+I15+I16+I17+I18+I19+I20+I21+I22+I23+I24+I25+I26+I27+I28+I29 -> 0 | J30: =J10+J11+J12+J13+J14+J15+J16+J17+J18+J19+J20+J21+J22+J23+J24+J25+J26+J27+J28+J29 -> 0 | K30: 0 | L30: 1343934 | M30: 60036 | N30: 0 | O30: 84000 | P30: 0 | Q30: 0 | R30: 0 | S30: 0 | T30: 5628 | U30: 10500 | V30: 2100 | W30: 0 | X30: 180000 | Y30: 0 | Z30: 0 | AA30: 500 | AB30: 342764 | AC30: 1001170
W32: ='Gen Info'!F11 -> PRINCIPAL
E33: हस्ताक्षर कार्मिक | W33: ='Gen Info'!F12 -> GOVT SENIOR SECONDARY SCHOOL RAJPURA PIPERAN,SRI GANGANAGAR
AD34: Programmed by Hans Raj Joshi

Sheet Assesment
B2: =Salary!B3 -> OFFICE OF THE PRINCIPAL GOVT SENIOR SECONDARY SCHOOL RAJPURA PIPERAN,SRI GANGANAGAR | Q2: =IF($W$2=1,"OLD REGIME","NEW REGIME") -> NEW REGIME | W2: 2
B3: आयकर गणना प्रपत्र वर्ष 2025-26 (कर निर्धारण वर्ष 2026-27) | P3: =P54 -> 2
B4: 1 | C4: नाम कार्मिक | E4: ='Gen Info'!C5 -> HANS RAJ JOSHI | K4: पद | L4: ='Gen Info'!C6 -> Principal | O4: PAN : | P4: ='Gen Info'!C9 -> XXXXX1234X
B5: 2 | C5: (A)आय : वर्ष 2024-25 में प्राप्त कुल वेतन [Salary as per provisions contained in section 17(1) ] | N5: =IF('Gen Info'!$C$12="NO",SUM(Salary!$L$30,Master!$U$4),IF(AND('Gen Info'!$C$12="YES",'Gen Info'!$C$11="YES"),SUM(Salary!$L$30,Master!$U$4),SUM(Salary!$L$30,Salary!$M$30,Master!$U$4))) -> 1343934 | P5: योग | Q5: =N5+H6+N6 -> 1343934 | T5: COMPARISION
D6: (B) Value of perquisites u/s 17(2) | H6: ='Pay & Allowances'!I14 -> 0 | J6: (C) Profits in lieu of salary under section 17(3) | N6: ='Pay & Allowances'!I15 -> 0
B7: 3 | C7: गृह किराया, धारा 10(13-।) के अन्तर्गत एवं धारा 10(14)के अन्तगर्त अन्य भते जो कर मुक्त्त है | P7: रु. | Q7: =IF($P$3="1",-SUM(HRA!$J$5,'Pay & Allowances'!$H$12),0) -> 0
B8: 4 | C8: शेष (2-3) | P8: रु. | Q8: =$Q$5+$Q$7 -> 1343934 | T8: TYPE | U8: OLD REGIME | V8: NEW REGIME
B9: 5 | C9: (i)मनोरंजन भता धारा 16 (ii) के अन्तगर्त ( अधिकतम सीमा रू 5000 ) | M9: =IF($P$3="1",IF('Pay & Allowances'!$I$12>5000,5000,'Pay & Allowances'!$I$12),0) -> 0 | T9: TAXABLE INCOME | U9: =Master!R90 -> 1114930 | V9: =Master!S90 -> 1268930
C10: (ii) व्यवयाय कर धारा 16 (iii) के अन्तगर्त | M10: =IF($P$3="1",'Pay & Allowances'!J12,0) -> 0 | T10: TAX | U10: =Master!R103 -> 146979 | V10: =Master!S101-Master!S102-Master!N110 -> 68930
C11: (iii) स्टेण्डर्ड डिडेक्शन(Standard Deduction) 50,000 (अधिकतम) | M11: =IF(AND($P$3="1"),MIN($Q$8,50000),IF(AND($P$3="2"),MIN($Q$8,75000),0)) -> 75000 | P11: रु. | Q11: =-SUM(M9:O11) -> -75000 | T11: CESS 4% | U11: =ROUND(U10*4%,0) -> 5879 | V11: =ROUND(V10*4%,0) -> 2757
B12: 6 | C12: शेष (4-5) | P12: रु. | Q12: =Q8+Q11 -> 1268934 | T12: TOTAL | U12: =SUM(U10:U11) -> 152858 | V12: =SUM(V10:V11) -> 71687
B13: 7 | C13: (अ)गृह सम्पति से आय : (1) स्वंय के उपयोग में -शून्य | K13: (2) प्राप्त किराया रु. | M13: =Deductions!E9 -> 0
C14: (ब) घटायें | E14: किराये का 30% | H14: गृह ऋण पर ब्याज | K14: गृहकर | M14: योग 7(ब) | T14: DIFFERENCE | U14: =U12-V12 -> 81171
E15: =IF(OR($P$3="1",$P$3="2"),ROUND((M13-K15)*0.3,0),0) -> 0 | H15: =IF($P$3="1",IF((Salary!$S$30+Deductions!E12)>200000,200000,(Salary!$S$30+Deductions!E12)),0) -> 0 | K15: =IF(OR($P$3="1",$P$3="2"),Deductions!E10,0) -> 0 | M15: =E15+H15+K15 -> 0
C16: शेष -/+ (7(अ) एवं योग 7(ब) का) | P16: रु. | Q16: =M13-M15 -> 0 | T16: =IF(U12<V12,"OLD REGIME IS BEST OPTION FOR YOU","NEW REGIME IS BEST FOR YOU") -> NEW REGIME IS BEST FOR YOU
B17: 8 | C17: कुल शेष -/+ (6एवं 7) | P17: रु. | Q17: =Q12+Q16 -> 1268934
B18: 9 | C18: बचत खाते पर ब्याज | P18: रु. | Q18: =Deductions!E7+Deductions!E8 -> 0
B19: 10 | C19: अन्य आय | P19: रु. | Q19: =Deductions!E6 -> 0 | V19: 1
B20: 11 | C20: सकल आय योग (8+9+10) | P20: रु. | Q20: =Q17+Q18+Q19 -> 1268934
B21: 12 | C21: घटाइये कटौतियाँ:- धारा US 80C, 80CCC,80CCD (1)
C22: (A) अधिकतम सीमा 1,50,000/- (धारा 80CCE ] (धारा 80CCD (2)) के अलावा
C23: (i) | D23: राज्य बीमा (SI) | H23: रु. | I23: =IF($P$3="1",Salary!$O$30,0) -> 0 | J23: (x) | N23: रु.
C24: (ii) | D24: जीवन बीमा प्रीमियम(LIC) | H24: रु. | I24: =IF($P$3="1",Salary!$T$30+Deductions!E13,0) -> 0 | J24: (xi) | K24: पेंशन प्लान हेतु अंशदान (धारा 80CCC) | N24: रु. | O24: =IF($P$3="1",Deductions!Q9,0) -> 0
C25: (iii) | D25: राष्ट्रीय बचत पत्र (NSC) | H25: रु. | I25: =IF($P$3="1",Deductions!E17,0) -> 0 | J25: (xii) | K25: राष्ट्रीय बचत पत्र पर अदत ब्याज | N25: रु. | O25: =IF($P$3="1",Deductions!E18,0) -> 0
C26: (iv) | D26: लोक भविष्य निधि (PPF) | H26: रु. | I26: =IF($P$3="1",Deductions!E19,0) -> 0 | J26: (xiii) | K26: टयूशन फीस | N26: रु. | O26: =IF($P$3="1",Deductions!E15,0) -> 0
C27: (v) | D27: NOTIFIED BOND OF NABARD | H27: रु. | I27: =IF($P$3="1",Deductions!E20,0) -> 0 | J27: (xiv) | K27: इक्विटी लिंक सेविंग स्कीम | N27: रु. | O27: =IF($P$3="1",Deductions!Q18,0) -> 0
C28: (vi) | D28: =IF('Gen Info'!C11="NO","सामान्य प्रावधायी निधि (GPF)","जीपीएफ 2004") -> सामान्य प्रावधायी निधि (GPF) | H28: रु. | I28: =IF(AND($P$3="1"),Salary!$M$30,0) -> 0 | J28: (xv) | K28: स्थगित वार्षिकी (Defferred Annuty) | N28: रु. | O28: =IF($P$3="1",Deductions!Q19,0) -> 0
C29: (vii) | D29: सामूहिक बीमा प्रीमियम (G.Ins.) | H29: रु. | I29: =IF($P$3="1",Salary!$V$30,0) -> 0 | J29: (xvi) | K29: पी.एल.आई. ¼PLI) | N29: रु. | O29: =IF($P$3="1",Deductions!E14,0) -> 0
C30: (viii) | D30: यू. एल. आई. पी./वार्षिक प्लान | H30: रु. | I30: =IF($P$3="1",Deductions!E16,0) -> 0 | J30: (xvii) | K30: अन्य जमाराशि (धारा 80 सी के अन्तर्गत) | N30: रु. | O30: =IF($P$3="1",Deductions!Q8,0) -> 0
C31: (ix) | D31: गृह ऋण किस्त ¼HBA Premium) | H31: रु. | I31: =IF($P$3="1",Deductions!E11+Salary!$R$30,0) -> 0 | J31: (xviii) | K31: सुकन्या समृद्धि योजना में जमा राशि | N31: रु. | O31: =IF($P$3="1",Deductions!E21,0) -> 0
C32: योग [(i) से (xviii)] | N32: रु. | O32: =SUM(I23:I31)+SUM(O23:O31) -> 0
C33: अधिकतम कटौती की राशि 1.50 लाख रुपए तक | P33: रु. | Q33: =IF(O32<150001,ROUND(O32,0),150000) -> 0
C34: (B) घटाइये- धारा 80CCD(2) नियोक्ता द्वारा पेंशन अंशदान की राशि (अधिकतम वेतन का 10% पृथक से छूट) | P34: रु. | Q34: =IF(AND('Gen Info'!C12="Yes"),Salary!$M$30,0) -> 0
C35: (C) घटाइये -धारा 80 CCD(1B) नवीन पेंशन योजना में अतिरिक्त अंशदान (अधिकतम रू. 50,000) | P35: रु. | Q35: =IF($P$3="1",Deductions!Q10,0) -> 0
C36: योग 12(A+B+C) | P36: रु. | Q36: =SUM(Q33:Q35) -> 0
B37: 13 | C37: अन्य कटौतियाँ
C38: 1 | D38: धारा 80 D ,चिकित्सा बीमा प्रीमियम (स्वयं,पति/पत्नी व बच्चों के लिए रू 25000, माता-पिता के लिए रू 25000,सीनियर सिटीजन रू 50000) | P38: रु. | Q38: =IF($P$3="1",IF(Deductions!P11=1,IF(Deductions!Q11<25000,Deductions!Q11,25000),IF(Deductions!Q11<50000,Deductions!Q11,50000)),0) -> 0
C39: 2 | D39: धारा 80DD विकलांग आश्रितों के चिकित्सा उपचार (अधिकतम 75,000 तथा 80%या अधिक विकलांगता 125,000) | P39: रु. | Q39: =IF($P$3="1",IF(Deductions!P12=1,IF(Deductions!Q12<75000,Deductions!Q12,75000),IF(Deductions!Q12<125000,Deductions!Q12,125000)),0) -> 0
C40: 3 | D40: धारा 80DDB विशिष्ट रोंगों के उपचार हेतु कटौती (अधिकतम रू 40,000, सीनियर सिटीजन हेतु रू 100,000) | E40: /kkjk 80DDB fof'k"V jksaxksa ds mipkj gsrq dVkSrh ¼vf/kdre : 40]000] lhfu;j flVhtu gsrq : 100]000½ | F40: /kkjk 80DDB fof'k"V jksaxksa ds mipkj gsrq dVkSrh ¼vf/kdre : 40]000] lhfu;j flVhtu gsrq : 100]000½ | G40: /kkjk 80DDB fof'k"V jksaxksa ds mipkj gsrq dVkSrh ¼vf/kdre : 40]000] lhfu;j flVhtu gsrq : 100]000½ | H40: /kkjk 80DDB fof'k"V jksaxksa ds mipkj gsrq dVkSrh ¼vf/kdre : 40]000] lhfu;j flVhtu gsrq : 100]000½ | I40: /kkjk 80DDB fof'k"V jksaxksa ds mipkj gsrq dVkSrh ¼vf/kdre : 40]000] lhfu;j flVhtu gsrq : 100]000½ | J40: /kkjk 80DDB fof'k"V jksaxksa ds mipkj gsrq dVkSrh ¼vf/kdre : 40]000] lhfu;j flVhtu gsrq : 100]000½ | K40: /kkjk 80DDB fof'k"V jksaxksa ds mipkj gsrq dVkSrh ¼vf/kdre : 40]000] lhfu;j flVhtu gsrq : 100]000½ | L40: /kkjk 80DDB fof'k"V jksaxksa ds mipkj gsrq dVkSrh ¼vf/kdre : 40]000] lhfu;j flVhtu gsrq : 100]000½ | M40: /kkjk 80DDB fof'k"V jksaxksa ds mipkj gsrq dVkSrh ¼vf/kdre : 40]000] lhfu;j flVhtu gsrq : 100]000½ | N40: /kkjk 80DDB fof'k"V jksaxksa ds mipkj gsrq dVkSrh ¼vf/kdre : 40]000] lhfu;j flVhtu gsrq : 100]000½ | O40: /kkjk 80DDB fof'k"V jksaxksa ds mipkj gsrq dVkSrh ¼vf/kdre : 40]000] lhfu;j flVhtu gsrq : 100]000½ | P40: रु. | Q40: =IF($P$3="1",IF(Deductions!P13=1,IF(Deductions!Q13<75000,Deductions!Q13,40000),IF(Deductions!Q13<100000,Deductions!Q13,100000)),0) -> 0
C41: 4 | D41: धारा 80E उच्च शिक्षा हेतु लिए ऋण का ब्याज | E41: /kkjk 80E mPp f'k{kk gsrq fy, _.k dk C;kt | F41: /kkjk 80E mPp f'k{kk gsrq fy, _.k dk C;kt | G41: /kkjk 80E mPp f'k{kk gsrq fy, _.k dk C;kt | H41: /kkjk 80E mPp f'k{kk gsrq fy, _.k dk C;kt | I41: /kkjk 80E mPp f'k{kk gsrq fy, _.k dk C;kt | J41: /kkjk 80E mPp f'k{kk gsrq fy, _.k dk C;kt | K41: /kkjk 80E mPp f'k{kk gsrq fy, _.k dk C;kt | L41: /kkjk 80E mPp f'k{kk gsrq fy, _.k dk C;kt | M41: /kkjk 80E mPp f'k{kk gsrq fy, _.k dk C;kt | N41: /kkjk 80E mPp f'k{kk gsrq fy, _.k dk C;kt | O41: /kkjk 80E mPp f'k{kk gsrq fy, _.k dk C;kt | P41: रु. | Q41: =IF($P$3="1",Deductions!Q14,0) -> 0
C42: 5 | D42: धारा 80G धर्मार्थ संस्थाओं आदि को दिये दान ( क श्रेणी में 100 प्रतिशत एवं ख श्रेणी में 50 प्रतिशत) | E42: /kkjk 80G /kekZFkZ laLFkkvksa vkfn dks fn;s nku ¼ d Js.kh esa 100 izfr'kr ,oa [k Js.kh esa 50 izfr'kr½ | F42: /kkjk 80G /kekZFkZ laLFkkvksa vkfn dks fn;s nku ¼ d Js.kh esa 100 izfr'kr ,oa [k Js.kh esa 50 izfr'kr½ | G42: /kkjk 80G /kekZFkZ laLFkkvksa vkfn dks fn;s nku ¼ d Js.kh esa 100 izfr'kr ,oa [k Js.kh esa 50 izfr'kr½ | H42: /kkjk 80G /kekZFkZ laLFkkvksa vkfn dks fn;s nku ¼ d Js.kh esa 100 izfr'kr ,oa [k Js.kh esa 50 izfr'kr½ | I42: /kkjk 80G /kekZFkZ laLFkkvksa vkfn dks fn;s nku ¼ d Js.kh esa 100 izfr'kr ,oa [k Js.kh esa 50 izfr'kr½ | J42: /kkjk 80G /kekZFkZ laLFkkvksa vkfn dks fn;s nku ¼ d Js.kh esa 100 izfr'kr ,oa [k Js.kh esa 50 izfr'kr½ | K42: /kkjk 80G /kekZFkZ laLFkkvksa vkfn dks fn;s nku ¼ d Js.kh esa 100 izfr'kr ,oa [k Js.kh esa 50 izfr'kr½ | L42: /kkjk 80G /kekZFkZ laLFkkvksa vkfn dks fn;s nku ¼ d Js.kh esa 100 izfr'kr ,oa [k Js.kh esa 50 izfr'kr½ | M42: /kkjk 80G /kekZFkZ laLFkkvksa vkfn dks fn;s nku ¼ d Js.kh esa 100 izfr'kr ,oa [k Js.kh esa 50 izfr'kr½ | N42: /kkjk 80G /kekZFkZ laLFkkvksa vkfn dks fn;s nku ¼ d Js.kh esa 100 izfr'kr ,oa [k Js.kh esa 50 izfr'kr½ | O42: /kkjk 80G /kekZFkZ laLFkkvksa vkfn dks fn;s nku ¼ d Js.kh esa 100 izfr'kr ,oa [k Js.kh esa 50 izfr'kr½ | P42: रु. | Q42: =IF($P$3="1",Deductions!Q15+Salary!$W$30,0) -> 0
C43: 6 | D43: धारा 80U स्थाई रूप से शारीरिक असमर्थतता की दशा में (अधिकतम 75,000 तथा अधिनियम 1995के अनुसार 125,000) | E43: /kkjk 80U LFkkbZ :i ls 'kkjhfjd vleFkZrrk dh n'kk esa ¼vf/kdre 75]000 rFkk vf/kfu;e 1995ds vuqlkj 125]000½ | F43: /kkjk 80U LFkkbZ :i ls 'kkjhfjd vleFkZrrk dh n'kk esa ¼vf/kdre 75]000 rFkk vf/kfu;e 1995ds vuqlkj 125]000½ | G43: /kkjk 80U LFkkbZ :i ls 'kkjhfjd vleFkZrrk dh n'kk esa ¼vf/kdre 75]000 rFkk vf/kfu;e 1995ds vuqlkj 125]000½ | H43: /kkjk 80U LFkkbZ :i ls 'kkjhfjd vleFkZrrk dh n'kk esa ¼vf/kdre 75]000 rFkk vf/kfu;e 1995ds vuqlkj 125]000½ | I43: /kkjk 80U LFkkbZ :i ls 'kkjhfjd vleFkZrrk dh n'kk esa ¼vf/kdre 75]000 rFkk vf/kfu;e 1995ds vuqlkj 125]000½ | J43: /kkjk 80U LFkkbZ :i ls 'kkjhfjd vleFkZrrk dh n'kk esa ¼vf/kdre 75]000 rFkk vf/kfu;e 1995ds vuqlkj 125]000½ | K43: /kkjk 80U LFkkbZ :i ls 'kkjhfjd vleFkZrrk dh n'kk esa ¼vf/kdre 75]000 rFkk vf/kfu;e 1995ds vuqlkj 125]000½ | L43: /kkjk 80U LFkkbZ :i ls 'kkjhfjd vleFkZrrk dh n'kk esa ¼vf/kdre 75]000 rFkk vf/kfu;e 1995ds vuqlkj 125]000½ | M43: /kkjk 80U LFkkbZ :i ls 'kkjhfjd vleFkZrrk dh n'kk esa ¼vf/kdre 75]000 rFkk vf/kfu;e 1995ds vuqlkj 125]000½ | N43: /kkjk 80U LFkkbZ :i ls 'kkjhfjd vleFkZrrk dh n'kk esa ¼vf/kdre 75]000 rFkk vf/kfu;e 1995ds vuqlkj 125]000½ | O43: /kkjk 80U LFkkbZ :i ls 'kkjhfjd vleFkZrrk dh n'kk esa ¼vf/kdre 75]000 rFkk vf/kfu;e 1995ds vuqlkj 125]000½ | P43: रु. | Q43: =IF($P$3="1",IF(Deductions!P16=1,IF(Deductions!Q16<75000,Deductions!Q16,75000),IF(Deductions!Q16<125000,Deductions!Q16,125000)),0) -> 0
C44: 7 | D44: धारा 80 TTA बचत खाते पर अधिकतम ब्याज रू. 10,000 | E44: /kkjk 80 TTA cpr [kkrs ij vf/kdre C;kt :- 10]000 194(IA) | F44: /kkjk 80 TTA cpr [kkrs ij vf/kdre C;kt :- 10]000 194(IA) | G44: /kkjk 80 TTA cpr [kkrs ij vf/kdre C;kt :- 10]000 194(IA) | H44: /kkjk 80 TTA cpr [kkrs ij vf/kdre C;kt :- 10]000 194(IA) | I44: /kkjk 80 TTA cpr [kkrs ij vf/kdre C;kt :- 10]000 194(IA) | J44: /kkjk 80 TTA cpr [kkrs ij vf/kdre C;kt :- 10]000 194(IA) | K44: /kkjk 80 TTA cpr [kkrs ij vf/kdre C;kt :- 10]000 194(IA) | L44: /kkjk 80 TTA cpr [kkrs ij vf/kdre C;kt :- 10]000 194(IA) | M44: /kkjk 80 TTA cpr [kkrs ij vf/kdre C;kt :- 10]000 194(IA) | N44: /kkjk 80 TTA cpr [kkrs ij vf/kdre C;kt :- 10]000 194(IA) | O44: /kkjk 80 TTA cpr [kkrs ij vf/kdre C;kt :- 10]000 194(IA) | P44: रु. | Q44: =IF($P$3="1",Master!R82,0) -> 0
C45: 8 | D45: धारा 80 TTB वरिष्ठ नागरिकों को सभी ब्याज पर अधिकतम 50000रू. | E45: /kkjk 80 TTB ofj"B ukxfjdksa dks lHkh C;kt ij vf/kdre 50000:- /kkjk194(IA) | F45: /kkjk 80 TTB ofj"B ukxfjdksa dks lHkh C;kt ij vf/kdre 50000:- /kkjk194(IA) | G45: /kkjk 80 TTB ofj"B ukxfjdksa dks lHkh C;kt ij vf/kdre 50000:- /kkjk194(IA) | H45: /kkjk 80 TTB ofj"B ukxfjdksa dks lHkh C;kt ij vf/kdre 50000:- /kkjk194(IA) | I45: /kkjk 80 TTB ofj"B ukxfjdksa dks lHkh C;kt ij vf/kdre 50000:- /kkjk194(IA) | J45: /kkjk 80 TTB ofj"B ukxfjdksa dks lHkh C;kt ij vf/kdre 50000:- /kkjk194(IA) | K45: /kkjk 80 TTB ofj"B ukxfjdksa dks lHkh C;kt ij vf/kdre 50000:- /kkjk194(IA) | L45: /kkjk 80 TTB ofj"B ukxfjdksa dks lHkh C;kt ij vf/kdre 50000:- /kkjk194(IA) | M45: /kkjk 80 TTB ofj"B ukxfjdksa dks lHkh C;kt ij vf/kdre 50000:- /kkjk194(IA) | N45: /kkjk 80 TTB ofj"B ukxfjdksa dks lHkh C;kt ij vf/kdre 50000:- /kkjk194(IA) | O45: /kkjk 80 TTB ofj"B ukxfjdksa dks lHkh C;kt ij vf/kdre 50000:- /kkjk194(IA) | P45: रु. | Q45: =IF($P$3="1",Master!R83,0) -> 0
C46: 9 | D46: धारा 80 GGA अनुमोदित वैज्ञानिक, सामाजिक, ग्रामीण विकास आदि हेतु दिया गया दान | E46: /kkjk 80 GGA vuqeksfnr oSKkfud] lkekftd] xzkeh.k fodkl vkfn gsrq fn;k x;k nku | F46: /kkjk 80 GGA vuqeksfnr oSKkfud] lkekftd] xzkeh.k fodkl vkfn gsrq fn;k x;k nku | G46: /kkjk 80 GGA vuqeksfnr oSKkfud] lkekftd] xzkeh.k fodkl vkfn gsrq fn;k x;k nku | H46: /kkjk 80 GGA vuqeksfnr oSKkfud] lkekftd] xzkeh.k fodkl vkfn gsrq fn;k x;k nku | I46: /kkjk 80 GGA vuqeksfnr oSKkfud] lkekftd] xzkeh.k fodkl vkfn gsrq fn;k x;k nku | J46: /kkjk 80 GGA vuqeksfnr oSKkfud] lkekftd] xzkeh.k fodkl vkfn gsrq fn;k x;k nku | K46: /kkjk 80 GGA vuqeksfnr oSKkfud] lkekftd] xzkeh.k fodkl vkfn gsrq fn;k x;k nku | L46: /kkjk 80 GGA vuqeksfnr oSKkfud] lkekftd] xzkeh.k fodkl vkfn gsrq fn;k x;k nku | M46: /kkjk 80 GGA vuqeksfnr oSKkfud] lkekftd] xzkeh.k fodkl vkfn gsrq fn;k x;k nku | N46: /kkjk 80 GGA vuqeksfnr oSKkfud] lkekftd] xzkeh.k fodkl vkfn gsrq fn;k x;k nku | O46: /kkjk 80 GGA vuqeksfnr oSKkfud] lkekftd] xzkeh.k fodkl vkfn gsrq fn;k x;k nku | P46: रु. | Q46: =IF($P$3="1",Deductions!Q17,0) -> 0
C47: 10 | D47: US 80 EE (Home Loan interest for first time house buyer) | P47: रु. | Q47: =IF($P$3="1",IF(Deductions!E22<50000,Deductions!E22,50000),0) -> 0
C48: 11 | D48: US 80EEA (Home Loan interest for Affordable home buyer .Loan sanction from 01-04-2019) | P48: रु. | Q48: =IF($P$3="1",IF(Deductions!Q22<150000,Deductions!Q22,150000),0) -> 0
C49: कुल योग 13 ( 1 से 11 तक ) | P49: रु. | Q49: =SUM(Q38:Q48) -> 0
B50: 14 | C50: कुल कटौती (12+13) | P50: रु. | Q50: =Q36+Q49 -> 0
B51: 15 | C51: कर योग्य आय(11-14)) | P51: रु. | Q51: =Q20-Q50 -> 1268934
B52: 16 | C52: कुल आय की राशि को सम्पूर्ण करना ( दस के गुणक में ) धारा 288A | P52: रु. | Q52: =ROUND(Q51,-1) -> 1268930 | T52: {Taxable income Rounded off u/s 288 A}
B53: 17 | C53: आयकर की गणना उपरोक्त कॉलम 15 के आधार पर
C54: 1.OLD REGIME | M54: 2.NEW REGIME | P54: =IF($Q$54="OLD REGIME","1","2") -> 2 | Q54: =Q2 -> NEW REGIME
C55: एक व्यक्ति कर दाता | F55: वरिष्ठ नागरिक (60 से 80 वर्ष तक) | J55: 80 वर्ष या अधिक आयु | M55: 0 - 4,00,000 | O55: 0 | Q55: =IF($P$54="1","",IF($P$54="1",Master!R94,Master!S94)) -> 0
C56: 250000 तक | E56: Nil | F56: 3,00,000 तक | I56: Nil | M56: 4,00,001 - 8,00,000 | O56: 0.05 | P56: रु. | Q56: =IF($P$54="1",Master!R95,Master!S95) -> 20000
C57: 2,50,001-5,00,000 | E57: 0.05 | F57: 3,00,001-5,00,000 | I57: 0.05 | J57: 5,00,000 तक | L57: Nil | M57: 8,00,001 - 12,00,000 | O57: 0.1 | P57: रु. | Q57: =IF($P$54="1",Master!R96,Master!S96) -> 40000
C58: 5,00,001-10,00,000 | E58: 0.2 | F58: 5,00,001-10,00,000 | I58: 0.2 | J58: 5,00,001-10,00,000 | L58: 0.2 | M58: 12,00,001 - 16,00,000 | O58: 0.15 | P58: रु. | Q58: =IF($P$54="1",Master!R97,Master!S97) -> 10339.5
C59: 10,00,000 से अधिक | E59: 0.3 | F59: 10,00,000 से अधिक | I59: 0.3 | J59: 10,00,000 से अधिक | L59: 0.3 | M59: 16,00,001- 20,00,000 | O59: 0.2 | P59: रु. | Q59: =IF($P$54="1",Master!R98,Master!S98) -> 0
M60: 20,00,001- 24,00,000 | O60: 0.25 | P60: रु. | Q60: =IF($P$54="1","",IF($P$54="1",Master!R99,Master!S99)) -> 0
M61: Above 24,00,000 | O61: 0.3 | P61: रु. | Q61: =IF($P$54="1","",IF($P$54="1",Master!R100,Master!S100)) -> 0
C62: (1) योग आयकर | P62: रु. | Q62: =ROUND(SUM(Q56:Q61),0) -> 70340
C63: (2) छूट घारा 87(।) (OLD Regime 5.00 लाख तक की कर योग्य आय पर आयकर की छूट अधिकतम रू. 12500 तक,New Regime 12.00 लाख तक की कर योग्य आय पर आयकर की छूट अधिकतम रू. 60000 तक) | L63: =IF(P54="1",IF(Q52>500000,0,IF(Q62<12501,Q62,12500)),IF(P54="2",IF(Q52>1200000,0,IF(Q62<60001,Q62,60000)))) -> 0 | M63: Marginal Relief | O63: =IF(P54="2",Master!R109,0) -> 1410 | P63: रु. | Q63: =L63+O63 -> 1410
C64: (3) शेष आयकर (1-2) | P64: रु. | Q64: =Q62-Q63 -> 68930
C65: (4) शिक्षा उपकर 2% एवं उच्च शिक्षा के लिए अधिभार 2% (योग 4%) | P65: रु. | Q65: =ROUND(Q64*0.04,0) -> 2757
C66: कुल आयकर (3+4) | P66: रु. | Q66: =SUM(Q64:Q65) -> 71687
B67: 18 | C67: घटाइये :- राहत धारा 89 के तहत | P67: रु. | Q67: =IF(Q66>=Deductions!Q20,IF(Deductions!Q20="",0,Deductions!Q20),0) -> 0
B68: 19 | C68: कुल शेष आयकर | P68: रु. | Q68: =Q66-Q67 -> 71687
B69: 20 | C69: स्रोत पर आयकर कटौती का विवरण | F69: सितम्बर 2025 तक | J69: अक्टूबर 2025 से दिसम्बर2025 तक | L69: जनवरी 2026 | M69: फरवरी 2026 | O69: अन्य टी.डी.एस.(एरियर,self assesment आदि से) | P69: TDS योग
F70: =SUM(Salary!X10:X16) -> 105000 | J70: =SUM(Salary!X17:X19) -> 45000 | L70: =SUM(Salary!X20) -> 15000 | M70: =SUM(Salary!X21) -> 15000 | O70: =SUM(Salary!$X$22:$X$29,Deductions!Q21) -> 0 | P70: =SUM(F70,J70,L70,M70,O70) -> 180000
B71: =IF($Q$68>$P$70,"Income Tax Payable (Rounded off)",IF($Q$68<$P$70,"Income Tax Refundable (Rounded off)","Income Tax Payble/Refundable")) -> Income Tax Refundable (Rounded off) | P71: =IF($Q$68>$P$70,ROUND($Q$68-$P$70,-1),ROUND($P$70-$Q$68,-1)) -> 108310 | T71: {Payable or Refundable tax Rounded off u/s 288 B}
C72: हस्ताक्षर कार्मिक
O73: Programmed by Hans Raj Joshi
B74: Disclaimer :This is learning purpose only.You are encouraged to consult your Accountant or Advisor before taking any decesion based on this calculator

Sheet Sheet2 (hidden)

Sheet Master (hidden)
A1: Master Sheet
A2: for medical dept | C2: ='Gen Info'!C13 -> 0 | D2: ='Gen Info'!F13 -> YES | E2: EMPLOYEE TYPE | G2: =Salary!N6 -> Regular | I2: ='Gen Info'!F8 -> 00:00:00 | J2: ='Gen Info'!C12 -> No | K2: HRA exemption | L2: Bonus | M2: ='Pay & Allowances'!L9 -> No | N2: Bonus months | O2: ='Pay & Allowances'!N9 -> 12 | P2: EMPLOYEE FROM MEDICAL DEP.,JUDICIARY DEP.POLICE CONSTABLE OR CLASS IV(L-1 TO L-4) | R2: FALSE | S2: HITKARI NIDHI | T2: =IFERROR(IF(OR(E3="All India Services",E3="State Service"),500,250),0) -> 500 | U2: अन्य भत्ते | AA2: RGHS | AH2: RGHS FOR NPS
B3: ='Gen Info'!C5 -> HANS RAJ JOSHI | D3: ='Gen Info'!C6 -> Principal | E3: ='Gen Info'!C7 -> State Service | G3: ='Gen Info'!F7 -> L-16 | H3: ='Gen Info'!F5 -> RJGA999999999999 | I3: ='Gen Info'!C9 -> XXXXX1234X | K3: =HRA!K4 -> NO | L3: =IF(M2="No",0,ROUND((6774*O2/12),0)) -> 0 | M3: =ROUND(L3*25%,0) -> 0 | N3: =L3-M3 -> 0 | S3: LIC SALARY | T3: =Deductions!Q7 -> 469 | U3: 10(14)+16(iii) | Y3: deduction | AA3: PAY RANGE | AC3: 2019-04-01 | AD3: 2020-04-01 | AE3: ded | AF3: DIFFERENCE | AI3: =CONCATENATE('Gen Info'!$E$6&" OF THE "&'Gen Info'!$F$11&" "&'Gen Info'!$F$12) -> OFFICE OF THE PRINCIPAL GOVT SENIOR SECONDARY SCHOOL RAJPURA PIPERAN,SRI GANGANAGAR
B4: =AH10 -> 63100 | E4: HRA | G4: CCA | H4: MARCH CCA | I4: CPF | K4: SURRENDER | L4: surrender 2025-26 | N4: NPA | O4: =IF(AND(C2="YES",D2="YES"),ROUND(M6*20%,0),0) -> 0 | U4: =SUM('Pay & Allowances'!H12,'Pay & Allowances'!I12) -> 0 | W4: 2017-10-01 | X4: 2018-03-01 | Y4: =IF(Salary!$D$11<23001,1450,IF(Salary!$D$11<28001,1625,IF(Salary!$D$11<38501,2100,IF(Salary!$D$11<51501,2850,IF(Salary!$D$11<62001,3575,IF(Salary!$D$11<72001,4200,IF(Salary!$D$11<80001,4800))))))) -> 4200 | Z4: =IF(Salary!$D$11<116001,6150,IF(Salary!$D$11<167001,8900,10500)) -> 6150 | AA4: UP TO 18000 | AC4: 242 | AD4: 265 | AE4: =IF($G$2="OPS",IF(Salary!$AD$6<18001,265,IF(Salary!$AD$6<33501,440,IF(Salary!$AD$6<54001,658,875))),"") ->  | AF4: =AD4-AC4 -> 23 | AH4: 135 | AI4: SALARY STATEMENT FOR FINANCIAL YEAR 2025-26
C5: Salary | D5: DA | E5: ='Pay & Allowances'!C9 -> Yes | G5: ='Pay & Allowances'!C12 -> No | H5: =G7 -> 0 | L5: month | M5: pay | N5: da | O5: total | P5: DEDUCTION | W5: 500 | X5: 1450 | AA5: 18001 TO 33500 | AC5: 402 | AD5: 440 | AF5: =AD5-AC5 -> 38 | AH5: 220
B6: Month | E6: ='Pay & Allowances'!E9 -> 0.1 | F6: =IF('Pay & Allowances'!E9=20%,"Y","Z") -> Z | G6: ='Pay & Allowances'!E12 -> KOTA | H6: NPA | I6: GROSS SALARY | K6: ITAX | L6: =IF('Pay & Allowances'!G9="Yes",'Pay & Allowances'!$I$9,"") -> 10 | M6: =IF(L6="",0,IF(ISNA(ROUND(VLOOKUP($L$6,Master!$A$8:$D$19,3,0)/2,0)),0,ROUND(VLOOKUP($L$6,Master!$A$8:$D$19,3,0)/2,0))) -> 32500 | N6: =IF(M6="","",IF(OR($L$6=4,$L$6=5,$L$6=6,$L$6=7,$L$6=8,$L$6=9),ROUND(($M$6+$O$4)*55%,0),ROUND(($M$6+$O$4)*58%,0))) -> 18850 | O6: =SUM(M6:N6) -> 51350 | P6: RGHS | Q6: GPF1 | R6: GPF2 | S6: =Salary!M8 -> GPF | T6: SI | U6: Govt.NPS | W6: 650 | X6: 1625 | AA6: 33501 TO 54000 | AC6: 602 | AD6: 658 | AF6: =AD6-AC6 -> 56 | AH6: 330
B7: march | C7: =Salary!D10 -> 63100 | D7: =IF(AND('Pay & Allowances'!$L$12="YES",'Pay & Allowances'!$N15="YES"),0,IF(AND($C$2="YES",$D$2="YES"),ROUND(($C7+$H7)*53%,0),ROUND($C7*53%,0))) -> 33443 | E7: =IF($E$5="Yes",IF(AND('Pay & Allowances'!$L$12="YES",'Pay & Allowances'!$N15="YES"),0,IF($F$6="Z",ROUND($C7*10%,0),IF($F$6="y",ROUND($C7*20%,0)))),0) -> 6310 | G7: =IFERROR(IF(AND('Pay & Allowances'!$L$12="YES",'Pay & Allowances'!$N15="YES"),0,IF($G$5="Yes",IF('Pay & Allowances'!$E$12="",0,IF(AH10>23100,VLOOKUP($G$6,$R$20:$T$24,2,0),VLOOKUP($G$6,$R$20:$T$24,3,0))),0)),0) -> 0 | H7: =IF(AND($C$2="YES",$D$2="YES"),ROUND($C7*20%,0),0) -> 0 | I7: =Salary!L10 -> 102853 | K7: =Deductions!C26 -> 15000 | P7: =IF(AND(AH10>0),IF(AH10<=18000,265,IF(AH10<=33500,440,IF(AH10<=54000,658,875))),0) -> 875 | Q7: =IF(C7>80000,"6150",IF(C7>72000,"4800",IF(C7>62000,"4200",IF(C7>51500,"3575",IF(C7>38500,"2850",IF(C7>28500,"2100",IF(C7>23100,"1625",IF(C7>17700,"1450","0")))))))) -> 4200 | R7: =IF(C7>167000,"10500",IF(C7>116000,"8900",Q7)) -> 4200 | S7: =IF(AND($G$2="Probationary",'Pay & Allowances'!N15="YES"),VLOOKUP($G$3,$AL$9:$AN$32,3,0),R7) -> 4200 | T7: =AE10 -> 7000 | U7: =IF(AND('Gen Info'!$C$11="YES",$G$2="NPS"),Master!S7,0) -> 0 | W7: 1100 | X7: 2100 | AA7: 54001 & ABOVE | AC7: 800 | AD7: 875 | AF7: =AD7-AC7 -> 75 | AH7: 440
A8: 4 | B8: april | C8: =Salary!D11 -> 63100 | D8: =IF(AND('Pay & Allowances'!$L$12="YES",'Pay & Allowances'!$N16="YES"),0,IF(AND($C$2="YES",$D$2="YES"),ROUND(($C8+$H8)*55%,0),ROUND($C8*55%,0))) -> 34705 | E8: =IF($E$5="Yes",IF(AND('Pay & Allowances'!$L$12="YES",'Pay & Allowances'!$N16="YES"),0,IF($F$6="Z",ROUND($C8*10%,0),IF($F$6="y",ROUND($C8*20%,0)))),0) -> 6310 | G8: =IFERROR(IF(AND('Pay & Allowances'!$L$12="YES",'Pay & Allowances'!$N16="YES"),0,IF($G$5="Yes",IF('Pay & Allowances'!$E$12="",0,IF(C8>23100,VLOOKUP($G$6,$R$20:$T$24,2,0),VLOOKUP($G$6,$R$20:$T$24,3,0))),0)),0) -> 0 | H8: =IF(AND($C$2="YES",$D$2="YES"),ROUND($C8*20%,0),0) -> 0 | I8: =Salary!L11 -> 104115 | K8: =Deductions!D26 -> 15000 | P8: =IF(AND(AH11>0),IF(AH11<=18000,265,IF(AH11<=33500,440,IF(AH11<=54000,658,875))),0) -> 875 | Q8: =IF(C8>80000,"6150",IF(C8>72000,"4800",IF(C8>62000,"4200",IF(C8>51500,"3575",IF(C8>38500,"2850",IF(C8>28500,"2100",IF(C8>23100,"1625",IF(C8>17700,"1450","0")))))))) -> 4200 | R8: =IF(C8>167000,"10500",IF(C8>116000,"8900",Q8)) -> 4200 | S8: =IF(AND($G$2="Probationary",'Pay & Allowances'!N16="YES"),VLOOKUP($G$3,$AL$9:$AN$32,3,0),R8) -> 4200 | T8: =AE10 -> 7000 | U8: =IF(AND('Gen Info'!$C$11="YES",$G$2="NPS"),Master!S8,0) -> 0 | W8: 1450 | X8: 2850 | AI8: ACP MONTH | AJ8: pay after acp | AL8: GPF FOR PROBATIONARY
A9: 5 | B9: may | C9: =Salary!D12 -> 63100 | D9: =IF(AND('Pay & Allowances'!$L$12="YES",'Pay & Allowances'!$N17="YES"),0,IF(AND($C$2="YES",$D$2="YES"),ROUND(($C9+$H9)*55%,0),ROUND($C9*55%,0))) -> 34705 | E9: =IF($E$5="Yes",IF(AND('Pay & Allowances'!$L$12="YES",'Pay & Allowances'!$N17="YES"),0,IF($F$6="Z",ROUND($C9*10%,0),IF($F$6="y",ROUND($C9*20%,0)))),0) -> 6310 | G9: =IFERROR(IF(AND('Pay & Allowances'!$L$12="YES",'Pay & Allowances'!$N17="YES"),0,IF($G$5="Yes",IF('Pay & Allowances'!$E$12="",0,IF(C9>23100,VLOOKUP($G$6,$R$20:$T$24,2,0),VLOOKUP($G$6,$R$20:$T$24,3,0))),0)),0) -> 0 | H9: 0 | I9: =Salary!L12 -> 104115 | K9: =Deductions!E26 -> 15000 | P9: =IF(AND(AH12>0),IF(AH12<=18000,265,IF(AH12<=33500,440,IF(AH12<=54000,658,875))),0) -> 875 | Q9: =IF(C9>72000,"4800",IF(C9>62000,"4200",IF(C9>51500,"3575",IF(C9>38500,"2850",IF(C9>28500,"2100",IF(C9>23100,"1625",IF(C9>17700,"1450","0"))))))) -> 4200 | R9: =IF(C9>167000,"10500",IF(C9>116000,"8900",IF(C9>80000,"6150",Q9))) -> 4200 | S9: =IF(AND($G$2="Probationary",'Pay & Allowances'!N17="YES"),VLOOKUP($G$3,$AL$9:$AN$32,3,0),R9) -> 4200 | T9: =AE10 -> 7000 | U9: =IF(AND('Gen Info'!$C$11="YES",$G$2="NPS"),Master!S9,0) -> 0 | W9: 2100 | X9: 3575 | AA9: SI PREMIUM FROM SALARY | AG9: MONTH | AH9: BASIC | AI9: ='Pay & Allowances'!J6 -> 0 | AJ9: =IF(OR('Pay & Allowances'!J6="",'Pay & Allowances'!M6=""),"",'Pay & Allowances'!$M$6) ->  | AL9: L-1 | AM9: 1 | AN9: 700 | AO9: CADER
A10: 6 | B10: june | C10: =Salary!D13 -> 63100 | D10: =IF(AND('Pay & Allowances'!$L$12="YES",'Pay & Allowances'!$N18="YES"),0,IF(AND($C$2="YES",$D$2="YES"),ROUND(($C10+$H10)*55%,0),ROUND($C10*55%,0))) -> 34705 | E10: =IF($E$5="Yes",IF(AND('Pay & Allowances'!$L$12="YES",'Pay & Allowances'!$N18="YES"),0,IF($F$6="Z",ROUND($C10*10%,0),IF($F$6="y",ROUND($C10*20%,0)))),0) -> 6310 | G10: =IFERROR(IF(AND('Pay & Allowances'!$L$12="YES",'Pay & Allowances'!$N18="YES"),0,IF($G$5="Yes",IF('Pay & Allowances'!$E$12="",0,IF(C10>23100,VLOOKUP($G$6,$R$20:$T$24,2,0),VLOOKUP($G$6,$R$20:$T$24,3,0))),0)),0) -> 0 | H10: 0 | I10: =Salary!L13 -> 104115 | K10: =Deductions!F26 -> 15000 | P10: 875 | Q10: 4200 | R10: 4200 | S10: =IF(AND($G$2="Probationary",'Pay & Allowances'!N18="YES"),VLOOKUP($G$3,$AL$9:$AN$32,3,0),R10) -> 4200 | T10: =AE10 -> 7000 | U10: =IF(AND('Gen Info'!$C$11="YES",$G$2="NPS"),Master!S10,0) -> 0 | W10: 3300 | X10: 4200 | AA10: PAY RANGE | AC10: 2018-03-01 | AD10: 2020-03-01 | AE10: =IF(Deductions!F32="YES",Deductions!H33,IF(Salary!$AD$6<22001,800,IF(Salary!$AD$6<28501,1200,IF(Salary!$AD$6<46501,2200,IF(Salary!$AD$6<72001,3000,5000))))) -> 7000 | AF10: =ROW(AF10)-7 -> 3 | AG10: 2020-03-01 | AH10: =IF($AI$9=ROW(AG10)-7,'Pay & Allowances'!$M$6,'Pay & Allowances'!$F$5) -> 63100 | AI10: march basic | AJ10: 2021-03-01 | AK10: =AH10 -> 63100 | AL10: L-2 | AM10: 2 | AN10: 700 | AO10: All India Services
A11: 7 | B11: july | C11: =Salary!D14 -> 65000 | D11: =IF(AND('Pay & Allowances'!$L$12="YES",'Pay & Allowances'!$N19="YES"),0,IF(AND($C$2="YES",$D$2="YES"),ROUND(($C11+$H11)*55%,0),ROUND($C11*55%,0))) -> 35750 | E11: =IF($E$5="Yes",IF(AND('Pay & Allowances'!$L$12="YES",'Pay & Allowances'!$N19="YES"),0,IF($F$6="Z",ROUND($C11*10%,0),IF($F$6="y",ROUND($C11*20%,0)))),0) -> 6500 | G11: =IFERROR(IF(AND('Pay & Allowances'!$L$12="YES",'Pay & Allowances'!$N19="YES"),0,IF($G$5="Yes",IF('Pay & Allowances'!$E$12="",0,IF(C11>23100,VLOOKUP($G$6,$R$20:$T$24,2,0),VLOOKUP($G$6,$R$20:$T$24,3,0))),0)),0) -> 0 | H11: 0 | I11: =Salary!L14 -> 107250 | K11: =Deductions!H26 -> 15000 | P11: 875 | Q11: 4200 | R11: 4200 | S11: =IF(AND($G$2="Probationary",'Pay & Allowances'!N19="YES"),VLOOKUP($G$3,$AL$9:$AN$32,3,0),R11) -> 4200 | T11: =T10 -> 7000 | U11: =IF(AND('Gen Info'!$C$11="YES",$G$2="NPS"),Master!S11,0) -> 0 | W11: 4100 | X11: 4800 | AA11: UPTO 22000 | AC11: 500 | AD11: 800 | AF11: =ROW(AF11)-7 -> 4 | AG11: 2020-04-01 | AH11: =IF($AI$9=ROW(AG11)-7,'Pay & Allowances'!$M$6,AH10) -> 63100 | AL11: L-3 | AM11: 3 | AN11: 700 | AO11: State Service
A12: 8 | B12: august | C12: =Salary!D15 -> 65000 | D12: =IF(AND('Pay & Allowances'!$L$12="YES",'Pay & Allowances'!$N20="YES"),0,IF(AND($C$2="YES",$D$2="YES"),ROUND(($C12+$H12)*55%,0),ROUND($C12*55%,0))) -> 35750 | E12: =IF($E$5="Yes",IF(AND('Pay & Allowances'!$L$12="YES",'Pay & Allowances'!$N20="YES"),0,IF($F$6="Z",ROUND($C12*10%,0),IF($F$6="y",ROUND($C12*20%,0)))),0) -> 6500 | G12: =IFERROR(IF(AND('Pay & Allowances'!$L$12="YES",'Pay & Allowances'!$N20="YES"),0,IF($G$5="Yes",IF('Pay & Allowances'!$E$12="",0,IF(C12>23100,VLOOKUP($G$6,$R$20:$T$24,2,0),VLOOKUP($G$6,$R$20:$T$24,3,0))),0)),0) -> 0 | H12: 0 | I12: =Salary!L15 -> 107250 | K12: =Deductions!I26 -> 15000 | P12: 875 | Q12: 4200 | R12: 4200 | S12: =IF(AND($G$2="Probationary",'Pay & Allowances'!N20="YES"),VLOOKUP($G$3,$AL$9:$AN$32,3,0),R12) -> 4200 | T12: 7000 | U12: =IF(AND('Gen Info'!$C$11="YES",$G$2="NPS"),Master!S12,0) -> 0 | W12: 5200 | X12: 6150 | AA12: 22001 TO 28500 | AC12: 700 | AD12: 1200 | AF12: 5 | AG12: 2020-05-01 | AH12: =IF($AI$9=ROW(AG12)-7,'Pay & Allowances'!$M$6,AH11) -> 63100 | AJ12: DEFFERD RELEASE PAY | AL12: L-4 | AM12: 4 | AN12: 700 | AO12: Subordinate
A13: 9 | B13: september | C13: =Salary!D16 -> 65000 | D13: =IF(AND('Pay & Allowances'!$L$12="YES",'Pay & Allowances'!$N21="YES"),0,IF(AND($C$2="YES",$D$2="YES"),ROUND(($C13+$H13)*55%,0),ROUND($C13*55%,0))) -> 35750 | E13: =IF($E$5="Yes",IF(AND('Pay & Allowances'!$L$12="YES",'Pay & Allowances'!$N21="YES"),0,IF($F$6="Z",ROUND($C13*10%,0),IF($F$6="y",ROUND($C13*20%,0)))),0) -> 6500 | G13: =IFERROR(IF(AND('Pay & Allowances'!$L$12="YES",'Pay & Allowances'!$N21="YES"),0,IF($G$5="Yes",IF('Pay & Allowances'!$E$12="",0,IF(C13>23100,VLOOKUP($G$6,$R$20:$T$24,2,0),VLOOKUP($G$6,$R$20:$T$24,3,0))),0)),0) -> 0 | H13: 0 | I13: =Salary!L16 -> 107250 | K13: =Deductions!J26 -> 15000 | P13: 875 | Q13: 4200 | R13: 4200 | S13: =IF(AND($G$2="Probationary",'Pay & Allowances'!N21="YES"),VLOOKUP($G$3,$AL$9:$AN$32,3,0),R13) -> 4200 | T13: 7000 | U13: =IF(AND('Gen Info'!$C$11="YES",$G$2="NPS"),Master!S13,0) -> 0 | W13: 5700 | X13: 8900 | AA13: 28501TO 46500 | AC13: 1300 | AD13: 2200 | AF13: 6 | AG13: 2020-06-01 | AH13: =IF($AI$9=ROW(AG13)-7,'Pay & Allowances'!$M$6,AH12) -> 63100 | AL13: L-5 | AM13: 5 | AN13: 700 | AO13: Ministrial
A14: 10 | B14: october | C14: =Salary!D17 -> 65000 | D14: =IF(AND('Pay & Allowances'!$L$12="YES",'Pay & Allowances'!$N22="YES"),0,IF(AND($C$2="YES",$D$2="YES"),ROUND(($C14+$H14)*58%,0),ROUND($C14*58%,0))) -> 37700 | E14: =IF($E$5="Yes",IF(AND('Pay & Allowances'!$L$12="YES",'Pay & Allowances'!$N22="YES"),0,IF($F$6="Z",ROUND($C14*10%,0),IF($F$6="y",ROUND($C14*20%,0)))),0) -> 6500 | G14: =IFERROR(IF(AND('Pay & Allowances'!$L$12="YES",'Pay & Allowances'!$N22="YES"),0,IF($G$5="Yes",IF('Pay & Allowances'!$E$12="",0,IF(C14>23100,VLOOKUP($G$6,$R$20:$T$24,2,0),VLOOKUP($G$6,$R$20:$T$24,3,0))),0)),0) -> 0 | H14: 0 | I14: =Salary!L17 -> 109200 | K14: =Deductions!K26 -> 15000 | P14: 875 | Q14: 4200 | R14: 4200 | S14: =IF(AND($G$2="Probationary",'Pay & Allowances'!N22="YES"),VLOOKUP($G$3,$AL$9:$AN$32,3,0),R14) -> 4200 | T14: 7000 | U14: =IF(AND('Gen Info'!$C$11="YES",$G$2="NPS"),Master!S14,0) -> 0 | W14: 6200 | X14: 10500 | AA14: 46501 TO 72000 | AC14: 1800 | AD14: 3000 | AF14: 7 | AG14: 2020-07-01 | AH14: =IF($AI$9=ROW(AG14)-7,'Pay & Allowances'!$M$6,MROUND(AH13*103%,100)) -> 65000 | AJ14: BASIC | AL14: L-6 | AM14: 6 | AN14: 700 | AO14: Class IV
A15: 11 | B15: november | C15: =Salary!D18 -> 65000 | D15: =IF(AND('Pay & Allowances'!$L$12="YES",'Pay & Allowances'!$N23="YES"),0,IF(AND($C$2="YES",$D$2="YES"),ROUND(($C15+$H15)*58%,0),ROUND($C15*58%,0))) -> 37700 | E15: =IF($E$5="Yes",IF(AND('Pay & Allowances'!$L$12="YES",'Pay & Allowances'!$N23="YES"),0,IF($F$6="Z",ROUND($C15*10%,0),IF($F$6="y",ROUND($C15*20%,0)))),0) -> 6500 | G15: =IFERROR(IF(AND('Pay & Allowances'!$L$12="YES",'Pay & Allowances'!$N23="YES"),0,IF($G$5="Yes",IF('Pay & Allowances'!$E$12="",0,IF(C15>23100,VLOOKUP($G$6,$R$20:$T$24,2,0),VLOOKUP($G$6,$R$20:$T$24,3,0))),0)),0) -> 0 | H15: 0 | I15: =Salary!L18 -> 109200 | K15: =Deductions!L26 -> 15000 | P15: 875 | Q15: 4200 | R15: 4200 | S15: =IF(AND($G$2="Probationary",'Pay & Allowances'!N23="YES"),VLOOKUP($G$3,$AL$9:$AN$32,3,0),R15) -> 4200 | T15: 7000 | U15: =IF(AND('Gen Info'!$C$11="YES",$G$2="NPS"),Master!S15,0) -> 0 | AA15: ABOVE 72000 | AC15: 3000 | AD15: 5000 | AF15: 8 | AG15: 2020-08-01 | AH15: =IF($AI$9=ROW(AG15)-7,'Pay & Allowances'!$M$6,AH14) -> 65000 | AJ15: MARCH R PAY | AL15: L-7 | AM15: 7 | AN15: 700
A16: 12 | B16: december | C16: =Salary!D19 -> 65000 | D16: =IF(AND('Pay & Allowances'!$L$12="YES",'Pay & Allowances'!$N24="YES"),0,IF(AND($C$2="YES",$D$2="YES"),ROUND(($C16+$H16)*58%,0),ROUND($C16*58%,0))) -> 37700 | E16: =IF($E$5="Yes",IF(AND('Pay & Allowances'!$L$12="YES",'Pay & Allowances'!$N24="YES"),0,IF($F$6="Z",ROUND($C16*10%,0),IF($F$6="y",ROUND($C16*20%,0)))),0) -> 6500 | G16: =IFERROR(IF(AND('Pay & Allowances'!$L$12="YES",'Pay & Allowances'!$N24="YES"),0,IF($G$5="Yes",IF('Pay & Allowances'!$E$12="",0,IF(C16>23100,VLOOKUP($G$6,$R$20:$T$24,2,0),VLOOKUP($G$6,$R$20:$T$24,3,0))),0)),0) -> 0 | H16: 0 | I16: =Salary!L19 -> 109200 | K16: =Deductions!M26 -> 15000 | P16: 875 | Q16: 4200 | R16: 4200 | S16: =IF(AND($G$2="Probationary",'Pay & Allowances'!N24="YES"),VLOOKUP($G$3,$AL$9:$AN$32,3,0),R16) -> 4200 | T16: 7000 | U16: =IF(AND('Gen Info'!$C$11="YES",$G$2="NPS"),Master!S16,0) -> 0 | AA16: MAXIMUM | AC16: 4000 | AD16: 7000 | AF16: 9 | AG16: 2020-09-01 | AH16: =IF($AI$9=ROW(AG16)-7,'Pay & Allowances'!$M$6,AH15) -> 65000 | AJ16: DA | AL16: L-8 | AM16: 8 | AN16: 800
A17: 1 | B17: january | C17: =Salary!D20 -> 65000 | D17: =IF(AND('Pay & Allowances'!$L$12="YES",'Pay & Allowances'!$N25="YES"),0,IF(AND($C$2="YES",$D$2="YES"),ROUND(($C17+$H17)*58%,0),ROUND($C17*58%,0))) -> 37700 | E17: =IF($E$5="Yes",IF(AND('Pay & Allowances'!$L$12="YES",'Pay & Allowances'!$N25="YES"),0,IF($F$6="Z",ROUND($C17*10%,0),IF($F$6="y",ROUND($C17*20%,0)))),0) -> 6500 | G17: =IFERROR(IF(AND('Pay & Allowances'!$L$12="YES",'Pay & Allowances'!$N25="YES"),0,IF($G$5="Yes",IF('Pay & Allowances'!$E$12="",0,IF(C17>23100,VLOOKUP($G$6,$R$20:$T$24,2,0),VLOOKUP($G$6,$R$20:$T$24,3,0))),0)),0) -> 0 | H17: 0 | I17: =Salary!L20 -> 109200 | K17: =Deductions!N26 -> 15000 | P17: 875 | Q17: 4200 | R17: 4200 | S17: =IF(AND($G$2="Probationary",'Pay & Allowances'!N25="YES"),VLOOKUP($G$3,$AL$9:$AN$32,3,0),R17) -> 4200 | T17: 7000 | U17: =IF(AND('Gen Info'!$C$11="YES",$G$2="NPS"),Master!S17,0) -> 0 | V17: CM CORONA RELIEF | X17: 2 | Y17: cader | Z17: Pay Leval | AF17: 10 | AG17: 2020-10-01 | AH17: =IF($AI$9=ROW(AG17)-7,'Pay & Allowances'!$M$6,AH16) -> 65000 | AJ17: HRA | AL17: L-9 | AM17: 9 | AN17: 800
A18: 2 | B18: february | C18: =Salary!D21 -> 65000 | D18: =IF(AND('Pay & Allowances'!$L$12="YES",'Pay & Allowances'!$N26="YES"),0,IF(AND($C$2="YES",$D$2="YES"),ROUND(($C18+$H18)*58%,0),ROUND($C18*58%,0))) -> 37700 | E18: =IF($E$5="Yes",IF(AND('Pay & Allowances'!$L$12="YES",'Pay & Allowances'!$N26="YES"),0,IF($F$6="Z",ROUND($C18*10%,0),IF($F$6="y",ROUND($C18*20%,0)))),0) -> 6500 | G18: =IFERROR(IF(AND('Pay & Allowances'!$L$12="YES",'Pay & Allowances'!$N26="YES"),0,IF($G$5="Yes",IF('Pay & Allowances'!$E$12="",0,IF(C18>23100,VLOOKUP($G$6,$R$20:$T$24,2,0),VLOOKUP($G$6,$R$20:$T$24,3,0))),0)),0) -> 0 | H18: 0 | I18: =Salary!L21 -> 109200 | K18: =Deductions!O26 -> 15000 | P18: 875 | Q18: 4200 | R18: 4200 | S18: =IF(AND($G$2="Probationary",'Pay & Allowances'!N26="YES"),VLOOKUP($G$3,$AL$9:$AN$32,3,0),R18) -> 4200 | T18: 7000 | U18: =IF(AND('Gen Info'!$C$11="YES",$G$2="NPS"),Master!S18,0) -> 0 | Y18: ='Gen Info'!C7 -> State Service | Z18: =VLOOKUP('Gen Info'!$F$7,AL9:AM32,2,0) -> 16 | AF18: 11 | AG18: 2020-11-01 | AH18: =IF($AI$9=ROW(AG18)-7,'Pay & Allowances'!$M$6,AH17) -> 65000 | AJ18: CCA | AL18: L-10 | AM18: 10 | AN18: 1100
A19: 3 | J19: arrear1 | M19: arrear2 | U19: =IF(AND('Gen Info'!$C$11="YES",$G$2="NPS"),Master!S19,0) -> 0 | AF19: 12 | AG19: 2020-12-01 | AH19: =IF($AI$9=ROW(AG19)-7,'Pay & Allowances'!$M$6,AH18) -> 65000 | AL19: L-11 | AM19: 11 | AN19: 1100
C20: वेतन (PAY+DA) | E20: =ROUND(SUM(Salary!D10:D21,Salary!E10:E21,E36),0) -> 1211558 | H20: =ROUND(HRA!$D$22,0) -> 0 | J20: राशि | K20: TDS | L20: =IF(J2="Yes","NPS","GPS") -> GPS | M20: राशि | N20: TDS | O20: =IF(J2="Yes","NPS","GPF") -> GPF | R20: JAIPUR(U) | S20: 1000 | T20: 620 | AF20: 13 | AG20: 2021-01-01 | AH20: =IF($AI$9=ROW(AG20)-7,'Pay & Allowances'!$M$6,AH19) -> 65000 | AL20: L-12 | AM20: 12 | AN20: 1400
A21: A | B21: HRA RECEIVED | E21: =Salary!F30 -> 77240 | H21: =HRA!E22 -> 0 | J21: ='Pay & Allowances'!C20 -> 0 | K21: ='Pay & Allowances'!D20 -> 0 | L21: ='Pay & Allowances'!E20 -> 0 | M21: ='Pay & Allowances'!F20 -> 0 | N21: ='Pay & Allowances'!G20 -> 0 | O21: ='Pay & Allowances'!H20 -> 0 | R21: JODHPUR | S21: 620 | T21: 320 | Z21: IF(C8>167000,"10500",IF(C8>116000,"8900",Q8 | AF21: 14 | AG21: 2021-02-01 | AH21: =IF($AI$9=ROW(AG21)-7,'Pay & Allowances'!$M$6,AH20) -> 65000 | AL21: L-13 | AM21: 13 | AN21: 1400
B22: 10% of SALARY(PAY+DA) | E22: =ROUND(E20*10%,0) -> 121156 | H22: =ROUND(HRA!$D$22*10%,0) -> 0 | L22: GOVT NPS | O22: GOVT NPS | Q22: March | R22: AJMER | S22: 620 | T22: 320 | AL22: L-14 | AM22: 14 | AN22: 1400
B23: RENT PAID ANNUALY | E23: =HRA!F5 -> 300000 | H23: =HRA!F5 -> 300000 | L23: =IF(AND('Gen Info'!C12="YES",'Gen Info'!C11="YES"),Master!L21,0) -> 0 | O23: =IF(AND('Gen Info'!C12="YES",'Gen Info'!C11="YES"),Master!O21,0) -> 0 | Q23: April | R23: BIKANER | S23: 620 | T23: 320 | AL23: L-15 | AM23: 15 | AN23: 1800
A24: B | B24: Rent paid ( Annual )-10% of Salary received ( Basic + DA ) | E24: =$E$23-$E$22 -> 178844 | H24: =H23-H22 -> 300000 | Q24: May | R24: KOTA | S24: 620 | T24: 320 | AL24: L-16 | AM24: 16 | AN24: 2100
A25: C | B25: 40% OF PAY | C25: =HRA!J9 -> NON METRO | E25: =IF($C$25="METRO",ROUND(E20*50%,0),ROUND(E20*40%,0)) -> 484623 | H25: =ROUND(HRA!$D$22*40%,0) -> 0 | AL25: L-17 | AM25: 17 | AN25: 2100
C26: HRA rent receipt req | E26: =$E$21+$E$22 -> 198396 | H26: =H22+H21 -> 0 | R26: 80CCD(1B) | AL26: L-18 | AM26: 18 | AN26: 2400
C27: HRA exemption | E27: =IF(AND($K$3="YES",$E$24>0),MIN($E$21,$E$24,$E$25),0) -> 0 | H27: =IF(AND(K3="YES",$H$24>0),MIN($H$21,$H$24,$H$25),0) -> 0 | Q27: SUM OF 80C | T27: =H61+H62+H63+H64+H65+H66+H67+H68+H69+P62+P63+P64+P65+P66+P67+P68+P69+R72 -> 245764 | AL27: L-19 | AM27: 19 | AN27: 2400
B28: =IF('Gen Info'!C12="Yes","NPS","OPS") -> OPS | C28: DA ARREAR | H28: surrender 2025-26 arrear | J28: month | K28: =IF('Pay & Allowances'!G9="YES",'Pay & Allowances'!I9,"") -> 10 | L28: total | Q28: 80CCD(1B) ADDITIONAL | T28: =IF(Deductions!K10>50000,50000,Deductions!K10) -> 0 | AL28: L-20 | AM28: 20 | AN28: 3000
C29: MONTH | D29: PAY | E29: DIFF 0% | F29: NPA | H29: PAY | I29: DA3% | K29: total | L29: GPF/GPF2004 | M29: CASH | N29: Govt.NPS | O29: GPF2004 | Q29: 80CCD 1 | R29: =R72 -> 0 | S29: 80C EXCEED 1.5LAC | T29: =IF(G2="OPS",0,IF(T27>150000,T27-150000,0)) -> 95764 | AL29: L-21 | AM29: 21 | AN29: 3000 | BE29: 4
B30: 7 | C30: 2025-07-01 | D30: =C11 -> 65000 | E30: =IF(AND($C$2="YES",$D$2="YES"),ROUND(($D30+$F30)*58%,0)-ROUND(($D30+$F30)*55%,0),ROUND($D30*58%,0)-ROUND($D30*55%,0)) -> 1950 | F30: =IF(AND($C$2="YES",$D$2="YES"),ROUND(D30*20%,0),0) -> 0 | H30: =IF($K$28=B30,ROUND(D30/2,0),0) -> 0 | I30: =ROUND(H30*3%,0) -> 0 | K30: =E30+I30 -> 1950 | L30: =K30 -> 1950 | M30: 0 | N30: =IF(AND('Gen Info'!$C$12="YES",'Gen Info'!$C$11="YES"),Master!L30,0) -> 0 | O30: =IF($G$2="NPS",K30-L30,0) -> 0 | R30: REVISED 80CCD1 | T30: =IFERROR(SUM(R29)-Deductions!Q32,0) -> 0 | AL30: L-22 | AM30: 22 | AN30: 4500
B31: 8 | C31: 2025-08-01 | D31: =C12 -> 65000 | E31: =IF(AND($C$2="YES",$D$2="YES"),ROUND(($D31+$F31)*58%,0)-ROUND(($D31+$F31)*55%,0),ROUND($D31*58%,0)-ROUND($D31*55%,0)) -> 1950 | F31: =IF(AND($C$2="YES",$D$2="YES"),ROUND(D31*20%,0),0) -> 0 | H31: =IF($K$28=B31,ROUND(D31/2,0),0) -> 0 | I31: =ROUND(H31*3%,0) -> 0 | K31: =E31+I31 -> 1950 | L31: =K31 -> 1950 | M31: 0 | N31: =IF(AND('Gen Info'!$C$12="YES",'Gen Info'!$C$11="YES"),Master!L31,0) -> 0 | O31: =IF($G$2="NPS",K31-L31,0) -> 0 | Q31: =IF(N31="YES",Master!T31,0) -> 0 | R31: 80CCD(1B) SPLIT FROM 80CCD1 | T31: =IF(OR('Gen Info'!C12="NO",T27<150000),0,IF(R29>=T29,MIN((50000-T28),T29),MIN(R29,50000-T28))) -> 0 | W31: T29>50000,50000-T28,U29 | AL31: L-23 | AM31: 23 | AN31: 4500
B32: 9 | C32: 2025-09-01 | D32: =C13 -> 65000 | E32: =IF(AND($C$2="YES",$D$2="YES"),ROUND(($D32+$F32)*58%,0)-ROUND(($D32+$F32)*55%,0),ROUND($D32*58%,0)-ROUND($D32*55%,0)) -> 1950 | F32: =IF(AND($C$2="YES",$D$2="YES"),ROUND(D32*20%,0),0) -> 0 | H32: 0 | I32: 0 | K32: =E32+I32 -> 1950 | L32: 1950 | M32: 0 | N32: =IF(AND('Gen Info'!$C$12="YES",'Gen Info'!$C$11="YES"),Master!L32,0) -> 0 | O32: =IF($G$2="NPS",K32-L32,0) -> 0 | AL32: L-24 | AM32: 24 | AN32: 5000
B33: 10 | H33: =IF($K$28=B33,ROUND(D33/2,0),0) -> 0 | I33: =ROUND(H33*0%,0) -> 0 | K33: =E33+I33 -> 0 | L33: 0 | M33: 0 | N33: =IF(AND('Gen Info'!$C$12="YES",'Gen Info'!$C$11="YES"),Master!L33,0) -> 0 | O33: =IF($G$2="NPS",K33-L33,0) -> 0
B34: 11
B35: 12
C36: TOTAL(7/24-10/24) | E36: =SUM(E30:E35) -> 5850 | F36: =SUM(F30:F35) -> 0 | H36: =SUM(H30:H35) -> 0 | I36: =SUM(I30:I35) -> 0 | K36: =SUM(K30:K35) -> 5850 | L36: =SUM(L30:L35) -> 5850 | M36: =SUM(M30:M35) -> 0 | N36: =SUM(N30:N35) -> 0 | O36: =SUM(O30:O35) -> 0
B37: 1 | C37: 2025-01-01 | D37: =C7 -> 63100 | E37: =IF(AND($C$2="YES",$D$2="YES"),ROUND(($D37+$F37)*55%,0)-ROUND(($D37+$F37)*53%,0),ROUND($D37*55%,0)-ROUND($D37*53%,0)) -> 1262 | H37: 0 | I37: =ROUND(H37*5%,0) -> 0 | K37: =E37+I37 -> 1262 | L37: =K37 -> 1262 | M37: =K37-L37 -> 0 | N37: =IF(AND('Gen Info'!$C$12="YES",'Gen Info'!$C$11="YES"),Master!L37,0) -> 0
B38: 2 | C38: 2025-02-01 | D38: =D37 -> 63100 | E38: =IF(AND($C$2="YES",$D$2="YES"),ROUND(($D38+$F38)*55%,0)-ROUND(($D38+$F38)*53%,0),ROUND($D38*55%,0)-ROUND($D38*53%,0)) -> 1262 | H38: 0 | I38: =ROUND(H38*5%,0) -> 0 | K38: =E38+I38 -> 1262 | L38: =K38 -> 1262 | M38: =K38-L38 -> 0 | N38: =IF(AND('Gen Info'!$C$12="YES",'Gen Info'!$C$11="YES"),Master!L38,0) -> 0 | R38: OLD | S38: NEW
B39: 3 | C39: 2025-03-01 | D39: =D38 -> 63100 | E39: 1262 | K39: =E39+I39 -> 1262 | L39: =IF($B$28="OPS",K39,ROUND(K39*10%,0)) -> 1262 | M39: =K39-L39 -> 0
C40: TOTAL(1/24-3/24) | E40: =SUM(E37:E39) -> 3786 | F40: =SUM(F37:F39) -> 0 | G40: 0 | H40: 0 | I40: 0 | J40: 0 | K40: 3786 | L40: 3786 | M40: 0 | N40: 0 | O40: 0
A41: vk;dj x.kuk izi= o"kZ 2024&2025¼dj fu/kkZj.k o"kZ 2025&2026½ | Q41: =#REF! ->  | R41: OLD REGIME | S41: NEW REGIME
A42: 1 | B42: uke deZpkjh % | J42: in % | P42: PAN : | Q42: =Deductions!L24 -> 0
A43: 2 | B43: vk; % o"kZ&2024&25 esa izkIr dqy osru ¼ dj ;ksX; lqfo/kkvksa ds eqY; lfgr ½ | Q43: #- | R43: =IF('Gen Info'!$C$12="NO",SUM(Salary!$L$30,$U$4),IF(AND('Gen Info'!$C$12="YES",'Gen Info'!C11="YES"),SUM(Salary!$L$30,$U$4),SUM(Salary!$L$30,Salary!$M$30,$U$4))) -> 1343934 | S43: =IF('Gen Info'!$C$12="NO",SUM(Salary!$L$30,$U$4),IF(AND('Gen Info'!$C$12="YES",'Gen Info'!D11="YES"),SUM(Salary!$L$30,$U$4),SUM(Salary!$L$30,Salary!$M$30,$U$4))) -> 1343934
B44: Value of perquisites u/s 17(2) | F44: ='Pay & Allowances'!I14 -> 0 | H44: Profits in lieu of salary under section 17(3) | L44: ='Pay & Allowances'!I15 -> 0 | O44: ;ksx | R44: =R43+F44+L44 -> 1343934 | S44: =S43+F44+L44 -> 1343934
A45: 3 | B45: x`g fdjk;k] /kkjk 10¼13&A½ ds vUrxrZ ,oa /kkjk 10¼14½ds vUrxrZ vU; Hkrs tks dj eqDÙk gSA | Q45: #- | R45: =-SUM(HRA!$J$5,'Pay & Allowances'!$H$12) -> 0 | S45: 0
A46: 4 | B46: 'ks"k ¼2&3½ | Q46: #- | R46: =$R$44+$R$45 -> 1343934 | S46: =$S$44+$S$45 -> 1343934
A47: 5 | B47: ¼i½euksjatu Hkrk /kkjk 16 ¼ii½ ds vUrxrZ ¼ vf/kdre lhek : 5000 ½ | N47: =IF('Pay & Allowances'!$I$12>5000,5000,'Pay & Allowances'!$I$12) -> 0 | S47: 0
B48: ¼ii½ O;o;k; dj /kkjk 16 ¼iii½ ds vUrxrZ | N48: ='Pay & Allowances'!J12 -> 0 | S48: 0
B49: ¼iiI½ LVs.MMZ fMMsD'ku (Standard Deduction) 50]000 ¼vf/kdre½ | N49: =MIN(R46,50000) -> 50000 | Q49: #- | R49: =-SUM(N47:P49) -> -50000 | S49: =MIN(S46,75000) -> 75000
A50: 6 | B50: 'ks"k ¼4&5½ | Q50: #- | R50: =R46+R49 -> 1293934 | S50: =S46-S47-S48-S49 -> 1268934
A51: 7 | B51: ¼v½x`g lEifr ls vk;%¼1½ Loa; ds mi;ksx esa &'kwU; | J51: ¼2½ izkIr fdjk;k #- | N51: =Deductions!E9 -> 0
B52: ¼c½ ?kVk;sa | D52: fdjk;s dk 30% | G52: x`g _.k ij C;kt | J52: x`gdj | N52: ;ksx 7¼c½
D53: =ROUND((N51-J53)*0.3,0) -> 0 | G53: =IF((Salary!S30+Deductions!E12)>200000,200000,(Salary!S30+Deductions!E12)) -> 29000 | J53: =Deductions!E10 -> 0 | N53: =D53+G53+J53 -> 29000
B54: 'ks"k &@$¼7¼v½ ,oa ;ksx 7¼c½ dk½ | Q54: #- | R54: =N51-N53 -> -29000 | S54: =N51-D53-J53 -> 0
B55: dqy 'ks"k &@$¼6,oa 7½ | Q55: #- | R55: =R50+R54 -> 1264934 | S55: =S50+S54 -> 1268934
A56: 8 | B56: cpr [kkrs ij C;kt | Q56: #- | R56: =Deductions!$E$7+Deductions!$E$8 -> 0 | S56: =Deductions!$E$7+Deductions!$E$8 -> 0
A57: 9 | B57: vU; vk; | R57: =Deductions!$E$6 -> 0 | S57: =Deductions!$E$6 -> 0
A58: 10 | B58: ldy vk; ;ksx ¼8$9½ | Q58: #- | R58: =R55+R56+R57 -> 1264934 | S58: =S55+S56+S57 -> 1268934
A59: 11 | B59: ?kVkb;s dVkSSfr;k¡ %& /kkjk US 80C, 80CCC,80CCD (1)
B60: (A) vf/kdre lhek 1]50]000@& ¼/kkjk 80CCE ½ ] ¼/kkjk 80CCD (2), ds vykok
B61: (i) | C61: jkT; chek ¼SI) | G61: #- | H61: =Salary!O30 -> 84000 | I61: (x) | J61: ljdkjh isa'ku ;kstuk esa va'knku ECPF vf/kdre osru dk 10%¼/kkjk 80ccd½ | O61: #- | P61: =IF(AND($G$2="NPS",Deductions!$N$32="YES"),T30,IF($G$2="NPS",Salary!$M$30,0)) -> 0
B62: (ii) | C62: thou chek izhfe;e ¼LIC) | G62: #- | H62: =Salary!T30+Deductions!E13 -> 5628 | I62: (xi) | J62: isa'ku Iyku gsrq va'knku¼/kkjk 80ccc½ | O62: #- | P62: =Deductions!Q9 -> 0
B63: (iii) | C63: jk"Vªh; cpr i= ¼NSC) | G63: #- | H63: =Deductions!E17 -> 50000 | I63: (xii) | J63: jk"Vªh; cpr i= ij vnr C;kt | O63: #- | P63: =Deductions!E18 -> 0
B64: (iv) | C64: yksd Hkfo"; fuf/k ¼PPF) | G64: #- | H64: =Deductions!E19 -> 0 | I64: (xiii) | J64: V;w'ku Qhl | O64: #- | P64: =Deductions!E15 -> 0
B65: (v) | C65: Notified bond of Nabard | G65: #- | H65: =Deductions!E20 -> 0 | I65: (xiv) | J65: bfDoVh fyad lsfoax Ldhe | O65: #- | P65: =Deductions!Q18 -> 0
B66: (vi) | C66: lkekU; izko/kk;h fuf/k ¼GPF)/GPF2004 | G66: #- | H66: =Salary!M30 -> 60036 | I66: (xv) | J66: LFkfxr okf"kZdh ¼Defferred Annuty) | O66: #- | P66: =Deductions!Q19 -> 0
B67: (vii) | C67: lkewfgd chek izhfe;e ¼G.Ins.) | G67: #- | H67: =Salary!V30 -> 2100 | I67: (xvi) | J67: ih-,y-vkbZ- ¼PLI) | O67: #- | P67: =Deductions!E14 -> 14000
B68: (viii) | C68: ;w- ,y- vkbZ- ih-@okf"kZd Iyku | G68: #- | H68: =Deductions!E16 -> 0 | I68: (xvii) | J68: vU; tekjkf'k ¼/kkjk 80 lh ds vUrxZr½ | O68: #- | P68: =Deductions!Q8 -> 0
B69: (ix) | C69: x`g _.k fdLr ¼HBA Premium) | G69: #- | H69: =Salary!R30+Deductions!E11 -> 30000 | I69: (xviii) | J69: lqdU;k le`f) ;kstuk esa tek jkf'k | O69: #- | P69: =Deductions!E21 -> 0
B70: ;ksx ( i ls xviii ) | O70: #- | P70: =SUM(H61:H69)+SUM(P61:P69) -> 245764
B71: vf/kdre dVkSrh dh jkf'k 1-50 yk[k #i, rd | Q71: #- | R71: =IF(P70<150001,ROUND(P70,0),150000) -> 150000 | S71: 0
B72: (B) ?kVkb;s& /kkjk 80CCD(2) fu;ksDrk }kjk isa'ku va'knku dh jkf'k ¼vf/kdre osru dk 10%) i`Fkd ls NwV | R72: =IF($G$2="NPS",Salary!M30,0) -> 0 | S72: =R72 -> 0
B73: (C) ?kVkb;s & /kkjk 80CCD (1B) uohu isa'ku ;kstuk esa vfrfjDr va'knku ¼vf/kdre :- 50]000) | Q73: #- | R73: =Deductions!Q10 -> 0 | S73: 0
B74: ;ksx 11(A+B+C) | Q74: #- | R74: =SUM(R71:R73) -> 150000 | S74: =SUM(S71:S73) -> 0
B75: vU; dVkSfr;k¡
A76: 12 | B76: 1-/kkjk 80 D ,fpfdRlk chek izhfe;e ¼Lo;a]ifr@iRuh o cPpksa ds fy, : 25000] ekrk&firk ds fy, : 25000]lhfu;j flVhtu : 50000½ | Q76: #- | R76: =Assesment!Q38 -> 0 | S76: 0
A77: 13 | B77: 2- /kkjk 80DD fodykax vkfJrksa ds fpfdRlk mipkj ¼vf/kdre 75]000 rFkk 80% ;k vf/kd fodykaxrk 125]000½ | Q77: #- | R77: =Assesment!Q39 -> 0 | S77: 0
A78: 14 | B78: 3- /kkjk 80DDB fof'k"V jksaxksa ds mipkj gsrq dVkSrh ¼vf/kdre : 40]000] lhfu;j flVhtu gsrq : 100]000½ | Q78: #- | R78: =Assesment!Q40 -> 0 | S78: 0
A79: 15 | B79: 4- /kkjk 80E mPp f'k{kk gsrq fy, _.k dk C;kt | Q79: #- | R79: =Deductions!$Q$14 -> 0 | S79: 0
A80: 16 | B80: 5- /kkjk 80G /kekZFkZ laLFkkvksa vkfn dks fn;s nku ¼ d Js.kh esa 100 izfr'kr ,oa [k Js.kh esa 50 izfr'kr½ | Q80: #- | R80: =Deductions!$Q$15+Salary!$W$30 -> 0 | S80: 0
A81: 17 | B81: 6- /kkjk 80U LFkkbZ :i ls 'kkjhfjd vleFkZrrk dh n'kk esa ¼vf/kdre 75]000 rFkk vf/kfu;e 1995ds vuqlkj 125]000½ | Q81: #- | R81: =Assesment!Q43 -> 0 | S81: 0
A82: 18 | B82: 7- /kkjk 80 TTA cpr [kkrs ij vf/kdre C;kt :- 10]000 194(IA) | Q82: #- | R82: =IF(Deductions!$E$7="",0,IF($M$93=1,MIN(Deductions!$E$7,10000),0)) -> 0 | S82: 0
B83: 8- /kkjk 80 TTB ofj"B ukxfjdksa dks lHkh C;kt ij vf/kdre 50000:- /kkjk194(IA) | R83: =IF(Deductions!$E$8="",0,IF($M$93=1,0,MIN(Deductions!$E$8,50000))) -> 0 | S83: 0
A84: 19 | B84: 9- /kkjk 80 GGA vuqeksfnr oSKkfud] lkekftd] xzkeh.k fodkl vkfn gsrq fn;k x;k nku | Q84: #- | R84: =Deductions!$Q$17 -> 0 | S84: 0
B85: 10. US 80 EE (Home Loan interest for first time house buyer) | R85: =IF(Deductions!E22="",0,IF(Deductions!E22<50000,Deductions!E22,50000)) -> 0
B86: 11. US 80EEA (Home Loan interest for Affordable home buyer .Loan sanction from 01-04-2019) | R86: =IF(Deductions!Q22="",0,IF(Deductions!Q22<150000,Deductions!Q22,150000)) -> 0
B87: dqy ;ksx ¼ 12 ls 19 rd ½ | Q87: #- | R87: =SUM($R$76:$R$86) -> 0 | S87: =SUM(S76:S84) -> 0
A88: 20 | B88: dqy dVkSrh ( 11 + 12 TO19) | Q88: #- | R88: =$R$74+$R$87 -> 150000 | S88: =S74+S87 -> 0
A89: 21 | B89: dj ;ksX; vk; ( 10 - 13 ) | Q89: #- | R89: =$R$58-$R$88 -> 1114934 | S89: =S58-S88 -> 1268934
A90: 15 | B90: dqy vk; dh jkf'k dks lEiw.kZ djuk ¼ nl ds xq.kd esa ½ /kkjk 288A | Q90: #- | R90: =ROUND($R$89,-1) -> 1114930 | S90: =ROUND($S$89,-1) -> 1268930
J91: =Assesment!C52 -> कुल आय की राशि को सम्पूर्ण करना ( दस के गुणक में ) धारा 288A
B92: OLD REGIME | N92: NEW REGIME | R92: OLD REGIME | S92: NEW REGIME | T92: OLD REGIME | U92: NEW REGIME | W92: <60 | Y92: 60 to 80 | AA92: above 80
B93: ,d O;fDr dj nkrk | K93: category for tax calculation | M93: 1 | Q93: AMOUNT | R93: =$R$90 -> 1114930 | S93: =$S$90 -> 1268930
C94: AMOUNT | E94: ofj"B ukxfjd ¼60 ls 80 o"kZ rd½ | J94: 80 o"kZ ;k vf/kd vk;q | N94: 0 - 4,00,000 | P94: 0 | Q94: =IF($S$93>400000,400000,$S$93) -> 400000 | S94: =$Q$94*$P$94 -> 0
A95: 2,50,000 rd | C95: =IF($R$93>250000,250000,$R$93) -> 250000 | D95: 0 | E95: 3,00,000 rd | H95: =IF($R$93>300000,300000,$R$93) -> 300000 | I95: 0 | N95: 4,00,001 - 8,00,000 | P95: 0.05 | Q95: =IF($S$93>800000,400000,IF($S$93>400000,$S$93-400000,0)) -> 400000 | R95: =IF($M$93=1,$C$95*$D$95,IF($M$93=2,$H$95*$I$95,$L$95*$M$95)) -> 0 | S95: =$Q$95*$P$95 -> 20000
A96: 2,50,001-5,00,000 | C96: =IF($R$93>500000,250000,IF($R$93>250000,$R$93-250000,0)) -> 250000 | D96: 0.05 | E96: 3,00,001-5,00,000 | H96: =IF($R$93>500000,200000,IF($R$93>300000,$R$93-300000,0)) -> 200000 | I96: 0.05 | J96: 5,00,000 rd | L96: =IF($R$93>500000,500000,$R$93) -> 500000 | M96: 0 | N96: 8,00,001 - 12,00,000 | P96: 0.1 | Q96: =IF($S$93>1200000,400000,IF($S$93>800000,$S$93-800000,0)) -> 400000 | R96: =IF($M$93=1,$C$96*$D$96,IF($M$93=2,$H$96*$I$96,$L$96*$M$96)) -> 12500 | S96: =$Q$96*$P$96 -> 40000
A97: 5,00,001-10,00,000 | C97: =IF($R$93>1000000,500000,IF($R$93>500000,$R$93-500000,0)) -> 500000 | D97: 0.2 | E97: 5,00,001-10,00,000 | H97: =IF($R$93>1000000,500000,IF($R$93>500000,$R$93-500000,0)) -> 500000 | I97: 0.2 | J97: 5,00,001-10,00,000 | L97: =IF($R$93>1000000,500000,IF($R$93>500000,$R$93-500000,0)) -> 500000 | M97: 0.2 | N97: 12,00,001 - 16,00,000 | P97: 0.15 | Q97: =IF($S$93>1600000,400000,IF($S$93>1200000,$S$93-1200000,0)) -> 68930 | R97: =IF($M$93=1,$C$97*$D$97,IF($M$93=2,$H$97*$I$97,$L$97*$M$97)) -> 100000 | S97: =$Q$97*$P$97 -> 10339.5
A98: 10,00,000 ls vf/kd | C98: =IF($R$93>1000000,IF($R$93>1000000,$R$93-1000000,0),0) -> 114930 | D98: 0.3 | E98: 10,00,000 ls vf/kd | H98: =IF($R$93>1000000,IF($R$93>1000000,$R$93-1000000,0),0) -> 114930 | I98: 0.3 | J98: 10,00,000 ls vf/kd | L98: =IF($R$93>1000000,IF($R$93>1000000,$R$93-1000000,0),0) -> 114930 | M98: 0.3 | N98: 16,00,001- 20,00,000 | P98: 0.2 | Q98: =IF($S$93>2000000,400000,IF($S$93>1600000,$S$93-1600000,0)) -> 0 | R98: =IF($M$93=1,$C$98*$D$98,IF($M$93=2,$H$98*$I$98,$L$98*$M$98)) -> 34479 | S98: =$Q$98*$P$98 -> 0
A99: TOTAL | C99: =SUM(C95:C98) -> 1114930 | H99: =SUM(H95:H98) -> 1114930 | L99: =SUM(L95:L98) -> 1114930 | N99: 20,00,001- 24,00,000 | P99: 0.25 | Q99: =IF($S$93>2400000,400000,IF($S$93>2000000,$S$93-2000000,0)) -> 0 | S99: =$Q$99*$P$99 -> 0
N100: Above 24,00,000 | P100: 0.3 | Q100: =IF($S$93>2400000,IF($S$93>2400000,$S$93-2400000,0),0) -> 0 | S100: =$Q$99*$P$99 -> 0
O101: TOTAL TAX | R101: =ROUND(SUM(R95:R99),0) -> 146979 | S101: =ROUND(SUM(S95:S100),0) -> 70340 | U101: =IF($S$90<=300000,0,IF($S$90<600001,(S90-300000)*5%,IF(S90<900001,(S90-600000)*10%+15000,IF(S90<1200001,(S90-900000)*15%+45000,IF(S90<1500001,(S90-1200000)*20%+90000,IF(S90>1500000,(S90-1500000)*30%+150000)))))) -> 103786
A102: NwV ?kkjk 87¼A½ ¼2-50 yk[k ls 5-00 yk[k rd dh dj ;ksX; vk; ij vk;dj dh NwV vf/kdre :- 12500 rd½@for New regime net income below 7lakh than rebate maximum 25000 | R102: =IF($R$90<500001,IF($R$101<12500,$R$101,12500),0) -> 0 | S102: =IF($S$90<=1200000,IF($S$101<60000,$S$101,60000),0) -> 0
P103: NET TAX | R103: =R101-R102 -> 146979 | S103: =S101 -> 70340 | V103: FORMULAH FOR NEW REGIME TAX 2023-24
B104: ¼2½ NwV ?kkjk 87¼A½ ¼2-50 yk[k ls 5-00 yk[k rd dh dj ;ksX; vk; ij vk;dj dh NwV vf/kdre :- 12500 rd½ | V104: IF($S$90<=300000,0,IF($S$90<600001,(S90-300000)*5%,IF(S90<900001,(S90-600000)*10%+15000,IF(S90<1200001,(S90-900000)*15%+45000,IF(S90<1500001,(S90-1200000)*20%+90000,IF(S90>1500000,(S90-1500000)*30%+150000))))))
V106: FORMULA FOR OLD REGIME
N107: difference | P107: Marginal Relief u/s 87A | V107: IF($S7<=250000,0,IF($S7<500001,($S7-250000)*5%,IF($S7<1000001,($S7-500000)*20%+12500,IF($S7>1000000,($S7-1000000)*30%+112500))))
H108: net taxable income | J108: =S90 -> 1268930 | L108: 1200000 | N108: =IF($J$108>$L$108,J108-L108,0) -> 68930 | P108: income>12Lac | Q108: tax diff | R108: marginal relief | S108: Net tax
H109: normal tax | J109: =S101 -> 70340 | L109: 0 | N109: =IF($J$108>$L$108,J109-L109,0) -> 70340 | P109: =IF(S90>1200000,S90-1200000,0) -> 68930 | Q109: =IF(S90>1200000,S101,0) -> 70340 | R109: =IF(S90>1200000,IF(P109<Q109,Q109-P109,0),0) -> 1410 | S109: =S101-R109 -> 68930
H110: cess | J110: =Assesment!Q65 -> 2757 | M110: marginal relief | N110: =IF(N109>N108,N109-N108,0) -> 1410
H111: surcharge
H112: toatal tax | J112: =SUM(J108:J111) -> 1342027 | M112: net tax | N112: =J109-N110 -> 68930

Sheet HRA
F3: HRA EXEMPTION CALCULATOR
H4: क्या आप HRA छूट लेना चाहते है | K4: NO | L4: choose by dropdown
B5: मकान किराये का वास्तविक भुगतान ( FOR HRA EXEMPTION ) | F5: 300000 | H5: HRA exemption | I5: Yearly | J5: =IF(HRA!I5="Yearly",Master!E27,Master!H27) -> 0 | L5: Rent receipt required for max. HRA exemption | M5: =IF(HRA!I5="Yearly",Master!E26,Master!H26) -> 198396
H7: IF YOU ARE NOT ELIGIBLE TO GET HRA EXEMPTION FOR COMPLETE YEAR THEN CHOOSE PARTIALLY
B8: PARTIALY HRA
B9: MONTHS | C9: "YES"/NO | D9: PAY+DA | E9: HRA | I9: CITY TYPE | J9: NON METRO
B10: 2025-03-01 | C10: NO | D10: =IF(C10="YES",SUM(Salary!D10:E10,Salary!D28:E28),0) -> 0 | E10: =IF(C10="YES",SUM(Salary!F10,Salary!F28),0) -> 0 | H10: Choose Metro for Delhi,Mumbai,Chennai,Kolkata and for others Non Metro
B11: 2025-04-01 | C11: NO | D11: =IF(C11="YES",SUM(Salary!D11:E11),0) -> 0 | E11: =IF(C11="YES",Salary!F11,0) -> 0 | G11: HRA exempted from income tax | M11: =HRA!I5 -> Yearly
B12: 2025-05-01 | C12: NO | D12: =IF(C12="YES",SUM(Salary!D12:E12),0) -> 0 | E12: =IF(C12="YES",Salary!F12,0) -> 0 | J12: वेतन (PAY+DA) | L12: =IF($M$11="Yearly",Master!E20,"-") -> 1211558 | M12: =IF($M$11="Partially",Master!H20,"-") -> -
B13: 2025-06-01 | C13: NO | D13: =IF(C13="YES",SUM(Salary!D13:E13),0) -> 0 | E13: =IF(C13="YES",Salary!F13,0) -> 0 | G13: Details | L13: =IF(M11="Yearly","Complete year HRA exemption","-") -> Complete year HRA exemption | M13: =IF(M11="Partially","Partial HRA exemption","-") -> -
B14: 2025-07-01 | C14: NO | D14: =IF(C14="YES",SUM(Salary!D14:E14,Master!E30),0) -> 0 | E14: =IF(C14="YES",Salary!F14,0) -> 0 | H14: मकान किराया का वास्तविक भुगतान | L14: =IF(M11="Yearly",HRA!F5,"-") -> 300000 | M14: =IF(M11="Partially",HRA!F5,"-") -> -
B15: 2025-08-01 | C15: NO | D15: =IF(C15="YES",SUM(Salary!D15:E15,Master!E31),0) -> 0 | E15: =IF(C15="YES",Salary!F15,0) -> 0 | G15: A | H15: प्राप्त मकान किराया भत्ता (HRA) | L15: =IF(M11="Yearly",Master!E21,"-") -> 77240 | M15: =IF(M11="Partially",E22,"-") -> -
B16: 2025-09-01 | C16: NO | D16: =IF(C16="YES",SUM(Salary!D16:E16,Master!E32),0) -> 0 | E16: =IF(C16="YES",Salary!F16,0) -> 0 | G16: B | H16: वेतन (मूल +मंहगाई भत्ता ) के 10% से अधिक मकान किराया भुगतान की राशि | L16: =IF(M11="Yearly",IF(Master!$E$24>0,Master!$E$24,0),"-") -> 178844 | M16: =IF(M11="Partially",IF(Master!$H$24>0,Master!$H$24,0),"-") -> -
B17: 2025-10-01 | C17: NO | D17: =IF(C17="YES",SUM(Salary!D17:E17),0) -> 0 | E17: =IF(C17="YES",Salary!F17,0) -> 0 | G17: C | H17: =IF(J9="NON METRO","वेतन (मूल +मंहगाई भत्ता ) का 40%","वेतन (मूल +मंहगाई भत्ता ) का 50%") -> वेतन (मूल +मंहगाई भत्ता ) का 40% | L17: =IF(M11="Yearly",IF(Master!$E$25>0,Master!$E$25,0),"-") -> 484623 | M17: =IF(M11="Partially",IF(Master!$H$25>0,Master!$H$25,0),"-") -> -
B18: 2025-11-01 | C18: NO | D18: =IF(C18="YES",SUM(Salary!D18:E18),0) -> 0 | E18: =IF(C18="YES",Salary!F18,0) -> 0 | G18: HRA exemption amount from Income Tax(Minimum amongA,B,C) | L18: =IF(M11="Yearly",Master!$E$27,"-") -> 0 | M18: =IF(M11="Partially",Master!$H$27,"-") -> -
B19: 2025-12-01 | C19: NO | D19: =IF(C19="YES",SUM(Salary!D19:E19),0) -> 0 | E19: =IF(C19="YES",Salary!F19,0) -> 0
B20: 2026-01-01 | C20: NO | D20: =IF(C20="YES",SUM(Salary!D20:E20),0) -> 0 | E20: =IF(C20="YES",Salary!F20,0) -> 0
B21: 2026-02-01 | C21: NO | D21: =IF(C21="YES",SUM(Salary!D21:E21),0) -> 0 | E21: =IF(C21="YES",Salary!F21,0) -> 0
D22: =SUM(D10:D21) -> 0 | E22: =SUM(E10:E21) -> 0
B23: IF YOU ARE NOT ELIGIBLE TO GET HRA EXEMPTION FOR COMPLETE YEAR THEN CHOOSE PARTIALLY HRA "YES" FROM DROPDOWN

Sheet Form16
B2: FORM NO. 16 | O2: d`Ik;k Traces (https://www.tdscpc.gov.in) ls izkIr QkWeZ 16 dk gh mi;ksx djsaA ;g QkWeZ 16 flQZ x.kuk mn~ns'; ds fy, gSA
B3: [(See Rule 31(1)(a)]
B4: PART-A
B5: Certificate uner section 203 of the income-tax act, 1961 for tax deducted at source on Salary. | O5: xzhu dyj lsYl dks vko';drk gks rks esU;wvyh HkjysaA fizaV djus ls igys fizaV fizO;w ns[kdj mlh ist dks fizaV djsa] ftldh vkidks vko';drk gSA ¼QkeZ ua- 16 Download djus ds fy, http://tdscpc.gov.in (Traces) osclkbV ij tk,aA
B6: Certificate No. | G6: Last Updated On
B7: Name and address of the employer | G7: Name and adress of the employee
B8: =IF('Gen Info'!F11="","",'Gen Info'!F11) -> PRINCIPAL | G8: =IF('Gen Info'!C5="","",'Gen Info'!C5) -> HANS RAJ JOSHI
B9: =IF('Gen Info'!F12="","",'Gen Info'!F12) -> GOVT SENIOR SECONDARY SCHOOL RAJPURA PIPERAN,SRI GANGANAGAR | G9: =IF('Gen Info'!C6="","",'Gen Info'!C6) -> Principal
B10: PAN of the Deductor | E10: TAN of Deductor | G10: PAN of the Employee | J10: Employee Ref No.
B11: PANNOTREQD | E11: =IF('Gen Info'!C10="","",'Gen Info'!C10) ->  | G11: =IF('Gen Info'!C9="","",'Gen Info'!C9) -> XXXXX1234X
B12: CIT (TDS) | G12: Assess. Year | I12: Peroid with the Employer | O12: ;fn vkidk VhMh,l BIN ds }kjk tek gqvk gS rks lEcfU/kr Annexure ds fy, fuEu cVuksa dk mi;ksx dj fooj.k Hkjs | S12: ;fn vkidk VhMh,l Challan ds }kjk tek gqvk gS rks lEcfU/kr Annexure ds fy, fuEu cVuksa dk mi;ksx fooj.k HkjssaA
B13: Adress | C13: CIT (TDS), New Central Revenue Building, Statue Circle | G13: 2025-26 | I13: From | K13: To
B14: City | C14: Jaipur | E14: PIN Code | F14: 302005 | I14: 01-4-2024 | K14: 31-03-2025
B15: Summary of amount paid/credited and tax deducted at source thereon in respect of the employee
B16: Quarters | C16: Receipt Numbers of original quarterly statements of TDS under sub-secion (3) of section 200 | F16: Amount paid/ credited | G16: Amount of tax deducted (Rs.) | J16: Amount of tax deposited/ remitted (Rs.)
B17: Ist
B18: IInd
B19: IIIrd
B20: IVth | G20: 196000 | J20: 196000
B21: TOTAL | F21: =SUM(F17:F20) -> 0 | G21: =SUM(G17:G20) -> 196000 | J21: =SUM(J17:J20) -> 196000
B22: I. Details of tax deducted and deposited in the Central Government account through book adjustment
B23: (The Deductor to provide payment-wise details of tax deducted and deposited with respect to the deductee)
B24: S.N. | C24: Tax Deposited in respect of the deductee (Rs) | E24: Book identification number (BIN)
E25: Receipt numbers of form No. 24G | F25: DDO serial number in Form No. 24G | G25: Date of transfer voucher (dd/mm/yyyy) | J25: Status of matching with Form No. 24G
B26: 1 | C26: =Salary!X10 -> 15000 | J26: =IF(E26>"0","Yes","") -> 
B27: 2 | C27: =Salary!X11 -> 15000 | J27: =IF(E27>"0","Yes","") -> 
B28: 3 | C28: =Salary!X12 -> 15000
B29: 4 | C29: =Salary!X13 -> 15000
B30: 5 | C30: =Salary!X14 -> 15000
B31: 6 | C31: =Salary!X15 -> 15000
B32: 7 | C32: =Salary!X16 -> 15000
B33: 8 | C33: =Salary!X17 -> 15000
B34: 9 | C34: =Salary!X18 -> 15000
B35: 10 | C35: =Salary!X19 -> 15000
B36: 11 | C36: =Salary!X20 -> 15000
B37: 12 | C37: =Salary!X21 -> 15000
B38: 13 | C38: =Salary!X26 -> 0
B39: 14 | C39: =Salary!X27 -> 0
B40: 15 | J40: =IF(E40>"0","Yes","") -> 
B41: Total | C41: =SUM(C26:C40) -> 180000
B42: II. Details of Tax deducted and deposited in Central Government Account through Challan.
B43: (The deducter to provide payment-wise details of tax deducted and deposited with respect to the deductee)
B44: S.N. | C44: Tax Deposited in respect on of the deductee (Rs) | E44: Challan identification number (CIN)
E45: BSR code of the Bank Branch | G45: Date on which tax deposited (dd/mm/yyyy) | I45: Challan Serial Number | K45: Status of matching with OLTAS
B46: 1 | C46: 6000
B47: 2
B48: 3
B49: 4
B50: 5
B51: 6
B52: 7
B53: 8
B54: 9
B55: 10
B56: 11
B57: 12
B58: 13
B59: 14
B60: 15
B61: Total | C61: =SUM(C46:C60) -> 6000
B62: Verification
B63: I | C63: =IF('Gen Info'!F9="","",'Gen Info'!F9) -> HANS RAJ JOSHI | F63: son/daughter of | G63: =IF('Gen Info'!F10="","",'Gen Info'!F10) ->  | K63: working in the
B64: capacity of | D64: =IF('Gen Info'!F11="","",'Gen Info'!F11) -> PRINCIPAL | G64: (designation) do hereby certify that a sum of
B65: Rs | C65: =J21 -> 196000 | D65: =IF(OR(LEN(FLOOR(C65,1))=13,FLOOR(C65,1)<=0),"Out of range",PROPER(SUBSTITUTE(CONCATENATE(CHOOSE(MID(TEXT(INT(C65),REPT(0,12)),1,1)+1,"","one hundred ","two hundred ","three hundred ","four hundred ","five hundred ","six hundred ","seven hundred ","eight hundred ","nine hundred "),CHOOSE(MID(TEXT(INT(C65),REPT(0,12)),2,1)+1,"",CHOOSE(MID(TEXT(INT(C65),REPT(0,12)),3,1)+1,"ten","eleven","twelve","thirteen","fourteen","fifteen","sixteen","seventeen","eighteen","nineteen"),"twenty","thirty","forty","fifty","sixty","seventy","eighty","ninety"),IF(VALUE(MID(TEXT(INT(C65),REPT(0,12)),2,1))>1,CHOOSE(MID(TEXT(INT(C65),REPT(0,12)),3,1)+1,"","-one","-two","-three","-four","-five","-six","-seven","-eight","-nine"),IF(VALUE(MID(TEXT(INT(C65),REPT(0,12)),2,1))=0,CHOOSE(MID(TEXT(INT(C65),REPT(0,12)),3,1)+1,"","one","two","three","four","five","six","seven","eight","nine"),"")),IF(C65>=10^9," billion ",""),CHOOSE(MID(TEXT(INT(C65),REPT(0,12)),4,1)+1,"","one hundred ","two hundred ","three hundred ","four hundred ","five hundred ","six hundred ","seven hundred ","eight hundred ","nine hundred "),CHOOSE(MID(TEXT(INT(C65),REPT(0,12)),5,1)+1,"",CHOOSE(MID(TEXT(INT(C65),REPT(0,12)),6,1)+1,"ten","eleven","twelve","thirteen","fourteen","fifteen","sixteen","seventeen","eighteen","nineteen"),"twenty","thirty","forty","fifty","sixty","seventy","eighty","ninety"),IF(VALUE(MID(TEXT(INT(C65),REPT(0,12)),5,1))>1,CHOOSE(MID(TEXT(INT(C65),REPT(0,12)),6,1)+1,"","-one","-two","-three","-four","-five","-six","-seven","-eight","-nine"),IF(VALUE(MID(TEXT(INT(C65),REPT(0,12)),5,1))=0,CHOOSE(MID(TEXT(INT(C65),REPT(0,12)),6,1)+1,"","one","two","three","four","five","six","seven","eight","nine"),"")),IF(VALUE(MID(TEXT(INT(C65),REPT(0,12)),4,3))>0," million ",""),CHOOSE(MID(TEXT(INT(C65),REPT(0,12)),7,1)+1,"","one hundred ","two hundred ","three hundred ","four hundred ","five hundred ","six hundred ","seven hundred ","eight hundred ","nine hundred "),CHOOSE(MID(TEXT(INT(C65),REPT(0,12)),8,1)+1,"",CHOOSE(MID(TEXT(INT(C65),REPT(0,12)),9,1)+1,"ten","eleven","twelve","thirteen","fourteen","fifteen","sixteen","seventeen","eighteen","nineteen"),"twenty","thirty","forty","fifty","sixty","seventy","eighty","ninety"),IF(VALUE(MID(TEXT(INT(C65),REPT(0,12)),8,1))>1,CHOOSE(MID(TEXT(INT(C65),REPT(0,12)),9,1)+1,"","-one","-two","-three","-four","-five","-six","-seven","-eight","-nine"),IF(VALUE(MID(TEXT(INT(C65),REPT(0,12)),8,1))=0,CHOOSE(MID(TEXT(INT(C65),REPT(0,12)),9,1)+1,"","one","two","three","four","five","six","seven","eight","nine"),"")),IF(VALUE(MID(TEXT(INT(C65),REPT(0,12)),7,3))," thousand ",""),CHOOSE(MID(TEXT(INT(C65),REPT(0,12)),10,1)+1,"","one hundred ","two hundred ","three hundred ","four hundred ","five hundred ","six hundred ","seven hundred ","eight hundred ","nine hundred "),CHOOSE(MID(TEXT(INT(C65),REPT(0,12)),11,1)+1,"",CHOOSE(MID(TEXT(INT(C65),REPT(0,12)),12,1)+1,"ten","eleven","twelve","thirteen","fourteen","fifteen","sixteen","seventeen","eighteen","nineteen"),"twenty","thirty","forty","fifty","sixty","seventy","eighty","ninety"),IF(VALUE(MID(TEXT(INT(C65),REPT(0,12)),11,1))>1,CHOOSE(MID(TEXT(INT(C65),REPT(0,12)),12,1)+1,"","-one","-two","-three","-four","-five","-six","-seven","-eight","-nine"),IF(VALUE(MID(TEXT(INT(C65),REPT(0,12)),11,1))=0,CHOOSE(MID(TEXT(INT(C65),REPT(0,12)),12,1)+1,"","one","two","three","four","five","six","seven","eight","nine"),"")))," "," ")&IF(FLOOR(C65,1)>1," Rupees"," dollar"))&IF(ISERROR(FIND(".",C65,1)),""," and "&PROPER(IF(LEN(LEFT(TRIM(MID(SUBSTITUTE(Sheet1!$B$5,".",REPT(" ",255)),255,200)),2))=1,CHOOSE(1*LEFT(TRIM(MID(SUBSTITUTE(Sheet1!$B$5,".",REPT(" ",255)),255,200)),2),"ten","twenty","thirty","forty","fifty","sixty","seventy","eighty","ninety")&" cents","")&CONCATENATE(CHOOSE(MID(TEXT(INT(LEFT(TRIM(MID(SUBSTITUTE(Sheet1!$B$5,".",REPT(" ",255)),255,200)),2)),REPT(0,12)),11,1)+1,"",CHOOSE(MID(TEXT(INT(LEFT(TRIM(MID(SUBSTITUTE(Sheet1!$B$5,".",REPT(" ",255)),255,200)),2)),REPT(0,12)),12,1)+1,"ten","eleven","twelve","thirteen","fourteen","fifteen","sixteen","seventeen","eighteen","nineteen"),"twenty","thirty","forty","fifty","sixty","seventy","eighty","ninety"),IF(VALUE(MID(TEXT(INT(LEFT(TRIM(MID(SUBSTITUTE(Sheet1!$B$5,".",REPT(" ",255)),255,200)),2)),REPT(0,12)),11,1))>1,CHOOSE(MID(TEXT(INT(LEFT(TRIM(MID(SUBSTITUTE(Sheet1!$B$5,".",REPT(" ",255)),255,200)),2)),REPT(0,12)),12,1)+1,"","-one","-two","-three","-four","-five","-six","-seven","-eight","-nine")&" cents",IF(LEFT(TRIM(MID(SUBSTITUTE(Sheet1!$B$5,".",REPT(" ",255)),255,200)),2)="01","one cent",IF(LEFT(TRIM(MID(SUBSTITUTE(Sheet1!$B$5,".",REPT(" ",255)),255,200)),1)="0",CHOOSE(MID(TEXT(INT(LEFT(TRIM(MID(SUBSTITUTE(Sheet1!$B$5,".",REPT(" ",255)),255,200)),2)),REPT(0,12)),12,1)+1,"","one","two","three","four","five","six","seven","eight","nine")&" cents",""))))))) -> One Hundred Ninety-Six Thousand Rupees | I65: (in words) has been deducted
B66: and deposited to the credit of the Central Govt.. I further certify that the information given above is true, complete and
B67: correct and is based on the books of account, documents,TDS statement, TDS deposited and other available records.
B68: Place
B69: Date | F69: Signature of person responsible for deduction of tax
B70: Designation | D70: =IF('Gen Info'!F11="","",'Gen Info'!F11) -> PRINCIPAL | F70: Full name | G70: =IF('Gen Info'!F9="","",'Gen Info'!F9) -> HANS RAJ JOSHI
B71: PART- B (Annexure)
B72: DETAILS OF SALARY PAID AND ANY OTHER INCOME AND TAX DEDUCTED
B73: 1. Gross salary
B74: (a) Salary as per provisions contained in section 17(1) | G74: =Assesment!N5 -> 1343934
B75: (b) Value of perquisites u/s 17(2) (as per Form No. 12BA, wherever applicable) | G75: =Assesment!H6 -> 0
B76: (c) Profits in lieu of salary under section 17(3) (as per Form No. 12BA, wherever applicable) | G76: =Assesment!N6 -> 0
B77: (d) Total | I77: =G74+G75+G76 -> 1343934
B78: Reported total amount of salary received from other employer(s). | G78: 0 | I78: =I77+G78 -> 1343934
B79: 2. Less: Allowance to the extent exempt u/s 10 House Rent Allowance
B80: Allowance | E80: Rs
B81: House Rent Allow. US10 (13 A) | E81: =HRA!J5 -> 0
B82: US 10 other allowances | E82: =IF('Pay & Allowances'!H12="",0,'Pay & Allowances'!H12) -> 0 | G82: =E81+E82 -> 0
B83: 3. Balance (1 - 2) | I83: =I78-G82 -> 1343934
B84: 4. Deductions: (a) Standard deduction us 16(ia) | G84: =Assesment!M11 -> 75000
B85: (a) | D85: Entertainment allowance 16(ii) | G85: =Assesment!M9 -> 0
B86: (b) | D86: Tax on employment 16(iii) | G86: =Assesment!M10 -> 0
B87: 5. Aggregate of 4(a) to (c) | I87: =G84+G85+G86 -> 75000
B88: 6. Income chargeable under the head "salaries" (3-5) | K88: =IF(I83>I87,I83-I87,0) -> 1268934
B89: 7. Add: Any other income reported by employee
B90: Income | F90: Rs
B91: From House Property | F91: =Assesment!Q16 -> 0
B92: Any other | F92: =SUM(Assesment!Q18:Q19) -> 0 | G92: =F91+F92 -> 0
B93: 8. Gross total income (6+7) | K93: =K88+G92 -> 1268934
B94: 9. Deductions under Chapter VI A
B95: (A) Section 80C, 80CCC and 80CCD
B96: (a) Section 80C | I96: Gross Amount | K96: Deductible Amount
B97: G P F | G97: =Assesment!I28 -> 0
B98: S I | G98: =Assesment!I23 -> 0
B99: L I C + ULIP + PLI | G99: =Assesment!I24+Assesment!I30+Assesment!O29 -> 0
B100: Gr. Acc. Insurance | G100: =Assesment!I29 -> 0
B101: Home loan capital | G101: =Assesment!I31 -> 0
B102: PPF | G102: =Assesment!I26 -> 0
B103: Notified Bond Of NABARD | G103: =Assesment!I27 -> 0
B104: Tuition Fee | G104: =Assesment!O26 -> 0
B105: NSC + Interest on NSC | G105: =Assesment!I25+Assesment!O25 -> 0
B106: Equity linked savings | G106: =Assesment!O27 -> 0
B107: Deferred Annuity | G107: =Assesment!O28 -> 0
B108: Any other us 80C (Tax saving Fixed Deposit,Mutual Fund,Bond etc) | G108: =Assesment!O30 -> 0
B109: Sukanya Samriddhi Yojana | G109: =Assesment!O31 -> 0
B110: (b) Section 80CCC | G110: =Assesment!O24 -> 0
B111: (c) Section 80CCD(1) | G111: =Assesment!O23 -> 0 | I111: =SUM(G97:H111) -> 0 | K111: =IF(I111<=150000,I111,150000)+Assesment!Q34 -> 0
B112: (B) Other Sections under Chapter VIA | G112: Gross Amount | I112: Qualifying amount | K112: Deductible Amount
B113: U/S 80D | G113: =Assesment!Q38 -> 0 | I113: =Assesment!Q38 -> 0
B114: U/S 80DD | G114: =Assesment!Q39 -> 0 | I114: =Assesment!Q39 -> 0
B115: U/S 80DDB | G115: =Assesment!Q40 -> 0 | I115: =Assesment!Q40 -> 0
B116: U/S 80E | G116: =Assesment!Q41 -> 0 | I116: =Assesment!Q41 -> 0
B117: U/S 80G | G117: =Assesment!Q42 -> 0 | I117: =Assesment!Q42 -> 0
B118: U/S 80GG | G118: =Assesment!Q46 -> 0 | I118: =Assesment!Q46 -> 0
B119: U/S 80EE | G119: =Deductions!E22 -> 0 | I119: =Assesment!Q47 -> 0
B120: U/S 80EEA | G120: =Deductions!Q22 -> 0 | I120: =Assesment!Q48 -> 0
B121: U/S 80U | G121: =Assesment!Q43 -> 0 | I121: =Assesment!Q43 -> 0
B122: US 80CCD (1B) | G122: =Assesment!Q35 -> 0 | I122: =Assesment!Q35 -> 0
B123: US 80TTA /80TTB | G123: =Assesment!Q44+Assesment!Q45 -> 0 | I123: =Assesment!Q44+Assesment!Q45 -> 0 | K123: =ROUND((I113+I114+I115+I116+I117+I118+I119+I120+I121+I122+I123),0) -> 0
B124: 10. Aggregate of deductible amount under chapter VIA | K124: =ROUND((K111+K123),0) -> 0
B125: 11. Total income (8-10) [Round up to figure 10 us288(A)] | K125: =ROUND(K93-K124,-1) -> 1268930
B126: 12. Tax on total income | K126: =Assesment!Q64 -> 68930
B127: 13. Health & Education cess | K127: =Assesment!Q65 -> 2757
B128: 14. Tax payable (12+13) | K128: =K126+K127 -> 71687
B129: 15. Relief under section 89 (Attach details) | K129: =Assesment!Q67 -> 0
B130: 16. Tax payable (14-15) | K130: =K128-K129 -> 71687
B131: Verification
B132: I | C132: =IF('Gen Info'!F9="","",'Gen Info'!F9) -> HANS RAJ JOSHI | F132: son/daughter of | G132: =IF('Gen Info'!F10="","",'Gen Info'!F10) ->  | K132: working in the
B133: capacity of | D133: =IF('Gen Info'!F11="","",'Gen Info'!F11) -> PRINCIPAL | G133: (designation) do hereby certify that the
B134: information given above is true, complete and correct and is based on the books of account, documents,TDS statement and other
B135: available records.
B136: Place
B137: Date | F137: Signature of person responsible for deduction of tax
B138: Designation | D138: =IF('Gen Info'!F11="","",'Gen Info'!F11) -> PRINCIPAL | F138: Full name | G138: =IF('Gen Info'!F9="","",'Gen Info'!F9) -> HANS RAJ JOSHI
B143: Notes:-
B144: 1. Government deductors to fill information in item 1 if tax is paid without production of an income tax challan and in item II if tax is paid accompanied by an income tax callan.
B147: 2. The deductor shall furnish the address of the Commissioner of Income tax (TDS) having jurisdiction as regards TDS statements of the assessee.
B150: 3. If an assessee is employed under one employer only during the year, certificate is Form No. 16 issued for the quarter ending on 31st March of the financial year shall contain the details of tax deducted and deposited for all the quarters of the financial year.
B154: 4. If an assessee is employed under more than one employer during the year, each of the employer shall issue Part A of the certificate in Form No. 16 pertaining to the period for which such assessee was employed with each of the employers. Part B (Annexure) of the certificate in Form No. 16 may be issued by each of the employers or the last employer at the option of the assesee.
B159: 5. In items I and II in column for tax deposited in respect of deductee. Furnish total amount of TDS and education cess.

Sheet Sheet3 (hidden)

Sheet us 89(1) (hidden)
B2: CALCULATION OF RELIEF UNDER SECTION 89 (1) | Q2: 1- loZizFke vius ,fj;j dks xr foÙkh; o"kksZa ds vuqlkj foHkkftr djsaA
B3: NAME | E3: ='Gen Info'!C5 -> HANS RAJ JOSHI
B4: ADDRESS | E4: ='Gen Info'!F6 -> GOVT SENIOR SECONDARY SCHOOL RAJPURA PIPERAN,SRI GANGANAGAR | P4: 2
B5: PAN | E5: ='Gen Info'!C9 -> XXXXX1234X | I5: CATEGORY | M5: =IF(Master!M93=1,"Individual below 60 Yrs",IF(Master!M93=2,"Senior citizen above 60 Yrs","Super Sr Citizen above 80 yrs")) -> Individual below 60 Yrs | Q5: 2- vc lEcfU/kr foÙkh; o"kksZa ds QkWeZ 16 vFkok ITR ls dj ;ksX; vk; dks lEcfU/kr lsYl esa Hkjuk gSA
B6: FINANCIAL YEAR- 2016-17 | M6: INCOME ( Rs )
B7: Enter net taxable income for 2016-17 (as per ITR/Form-16)
B8: Enter arrears relates to 2016-17
B9: FINANCIAL YEAR- 2017-18 | M9: INCOME ( Rs )
B10: Enter net taxable income for 2017-18 (as per ITR/Form-16) | M10: 400000
B11: Enter arrears relates to 2017-18 | M11: 30000
B12: FINANCIAL YEAR- 2018-19 | M12: INCOME ( Rs ) | Q12: 3- dj ;ksX; vk; og vk; gS ftl ij ml foÙkh; o"kZ esa fu/kkZfjr vk;dj nj ls vk;dj dh x.kuk dh tkrh gSA
B13: Enter net taxable income for 2018-19 (as per ITR/Form-16) | M13: 700000
B14: Enter arrears relates to 2018-19 | M14: 40000
B15: FINANCIAL YEAR- 2019-20 | M15: INCOME ( Rs )
B16: Enter net taxable income for 2019-20 (as per ITR/Form-16) | M16: 850000 | Q16: 4- vc bl QkWeZ esa lEcfU/kr foÙkh; o"kZ dh dj ;ksX; vk; ,oa ml o"kZ ls lEcfU/kr ,fj;j dh jkf'k HkjsaA /;ku jgs foÙkh; o"kZ 2021&22 ds fy, Hkjh x;h dj ;ksX; vk; esa lEiw.kZ ,fj;j dh jkf'k tqMh gksA vc vxyh 'khV 'form10E' esa 'GENERATE FORM 10E' cVu nckdj QkWeZ 10E, Generate djsaA izkIr NwV dh jkf'k dks 'deduction' 'khV esa lsy Q20 esa /kkjk 89(1) ds rgr jkgr esa HkjsaA
B17: Enter arrears relates to 2019-20 | M17: 50000 | P17: For FY 2020-21
B18: FINANCIAL YEAR- 2020-21 | M18: INCOME ( Rs ) | P18: Select Regime Type
B19: Enter net taxable income for 2020-21 (as per ITR/Form-16) | M19: 510000
B20: Enter arrears relates to 2020-21 | M20: 60000
B21: FINANCIAL YEAR- 2021-22 | M21: INCOME ( Rs )
B22: Enter net taxable income for 2021-22 (as per ITR/Form-16) | M22: 510000
B23: Enter arrears relates to 2021-22 | M23: 60000
B24: FINANCIAL YEAR- 2022-23 | M24: INCOME ( Rs )
B25: Enter net taxable income for 2022-23 (as per ITR/Form-16) | M25: 650000
B26: Enter arrears relates to 2022-23 | M26: 60000
B27: FINANCIAL YEAR- 2023-24 | M27: INCOME ( Rs )
B28: Enter net taxable income for 2023-24 (as per ITR/Form-16) | M28: 670000
B29: Enter arrears relates to 2023-24 | M29: 7000
B30: FINANCIAL YEAR- 2024-25 | M30: INCOME ( Rs ) | P30: for FY 2024-25 Regime Type will be auto select as per assesment sheet
B31: Enter net taxable income for 2024-25 including entire arrears received (as per ITR/Form-16) | M31: =Assesment!Q52 -> 1268930

Sheet Form 10E (hidden)
B2: FORM NO. 10 E (See rule 21AA)
B3: Form for furnishing particulars of income undr scetion 192(2A) for year ending 31st March 2025 for claiming relief under section 89(1) by a Government servant or an employee in a company, co-operative society, local authority, university, institution, association or body.
B4: Name | E4: =PROPER(IF('us 89(1)'!E3="","",'us 89(1)'!E3)) -> Hans Raj Joshi
B5: Address | E5: =UPPER(IF('us 89(1)'!E4="","",'us 89(1)'!E4)) -> GOVT SENIOR SECONDARY SCHOOL RAJPURA PIPERAN,SRI GANGANAGAR
B6: PAN | E6: =UPPER(IF('us 89(1)'!E5="","",'us 89(1)'!E5)) -> XXXXX1234X | J6: Status | L6: Indian Resident
B8: Particulars of Income referred to in rule 21A of the Income tax Rules, 1962, during the previous year relevant to assessment year 2025-26
B9: 1. (a) Salary received in arrears or in advance during 2024-25 in accordance with the provision of sub-rule (2) of rule 21A | M9: ='us 89(1)'!M8+'us 89(1)'!M11+'us 89(1)'!M14+'us 89(1)'!M17+'us 89(1)'!M20+'us 89(1)'!M23+'us 89(1)'!M26+'us 89(1)'!M29 -> 307000
B10: (b) Payment in the nature of gratuity in respect of past services, extending over a period of not less than 5 years in accordance with the provisions of sub-rule (3) of rule 21A | M10: Not applicable
B11: (c) Payment in the nature of compensation from the employer or former employer at or in connection with termination of employment after continuous service of not less than 3 years in accordance with the provisions of sub-rule (4) of rule 21A | M11: Not applicable
B12: (d) Payment in commutation of pension in accordance with the provisions of sub-rule (5) of rule 21A | M12: Not applicable
B13: 2. Detailed particulars of payments referred to above may be given in Annexure I, II, IIA, III or IV as the case may be | M13: Annexure- I
B14: Verification
B15: I do hereby declare that what is stated above is true to the best of my knowledge and belief. Verified today
B17: Date:
L18: Signature of the employee
B20: ANNEXURE - I
B21: 1. Total net taxable Income excluding Salary received in Arrears or advance | M21: =M23-M22 -> 961930
B22: 2. salary received in arrears or advance | M22: =M9 -> 307000
B23: 3. Total Income (as increased by salary received in arrears or advance) (Add item 1 and item 2) | M23: ='us 89(1)'!M31 -> 1268930
B24: 4. Tax on total income (as per item 3) | M24: =Control_10E!F22 -> 23608
B25: 5. Tax on total income (as per item 1) | M25: =Control_10E!F10 -> 22880
B26: 6. Tax on salary received in arrears or advance (Difference of item 4 and item 5) | M26: =M24-M25 -> 728
B27: 7. Tax computed in accordance with Table "A" (Brought from column 7 of Table "A") | M27: =N41 -> 38985 | R27: /kkjk 89¼1½ ds ragr NwV ds fy, Deduction sheet ds dkWye Q20 esa Hkjs A'kwU; ls de jkf'k avkus ij NwV 'kwU; gksxh
B28: 8. Relief under section 89 (1) (Indicate the difference between the amounts mentioned against items 6 and 7) | M28: =M26-M27 -> -38257
B30: TABLE "A" (See item 7 of Annexure I) | R30: Relief under secion 89(1) is
B31: Previous Year(s) | D31: Total Net Taxable income of the relevant previous year | F31: salary received in arrears or advance relating to the relevant previous year as mentioned in col. (1) | H31: Total income (as increased by salry received in arrears or advance) or the relevant previous year mentioned in col. (1) (Add col. 2 and 3) | J31: Tax on total income (as per col. 2) | L31: Tax on total income (as per col. 4) | N31: Difference in tax (Amount under col. 6 minus amount under col. 5) | R31: =IF(M28<=0,0,M28) -> 0
B32: 1 | D32: 2 | F32: 3 | H32: 4 | J32: 5 | L32: 6 | N32: 7
B33: 2016-17 | D33: ='us 89(1)'!M7 -> 0 | F33: ='us 89(1)'!M8 -> 0 | H33: =D33+F33 -> 0 | J33: =Control_10E!F3 -> 0 | L33: =Control_10E!F15 -> 0 | N33: =L33-J33 -> 0
B34: 2017-18 | D34: ='us 89(1)'!M10 -> 400000 | F34: ='us 89(1)'!M11 -> 30000 | H34: 430000 | J34: =Control_10E!F4 -> 7725 | L34: =Control_10E!F16 -> 9270 | N34: 1545
B35: 2018-19 | D35: ='us 89(1)'!M13 -> 700000 | F35: ='us 89(1)'!M14 -> 40000 | H35: 740000 | J35: =Control_10E!F5 -> 54600 | L35: =Control_10E!F17 -> 62920 | N35: 8320
B36: 2019-20 | D36: ='us 89(1)'!M16 -> 850000 | F36: ='us 89(1)'!M17 -> 50000 | H36: 900000 | J36: =Control_10E!F6 -> 85800 | L36: =Control_10E!F18 -> 96200 | N36: 10400
B37: 2020-21 | D37: ='us 89(1)'!M19 -> 510000 | F37: ='us 89(1)'!M20 -> 60000 | H37: 570000 | J37: =Control_10E!F7 -> 14040 | L37: =Control_10E!F19 -> 20280 | N37: 6240
B38: 2021-22 | D38: ='us 89(1)'!M22 -> 510000 | F38: ='us 89(1)'!M23 -> 60000 | H38: 570000 | J38: =Control_10E!F8 -> 14040 | L38: =Control_10E!F20 -> 20280 | N38: 6240
B39: 2022-23 | D39: ='us 89(1)'!M25 -> 650000 | F39: ='us 89(1)'!M26 -> 60000 | H39: 710000 | J39: =Control_10E!F9 -> 28600 | L39: =Control_10E!F21 -> 34840 | N39: 6240
B40: 2023-24 | D40: ='us 89(1)'!M28 -> 670000 | F40: ='us 89(1)'!M29 -> 7000 | H40: =D40+F40 -> 677000 | J40: =Control_10E!F10 -> 22880 | L40: =Control_10E!F22 -> 23608 | N40: =L40-J40 -> 728
B41: Total | N41: =N33+N34+N35+N36+N37+N38+N39 -> 38985
B48: Disclaimer: -All care has been taken to keep the information upto date and correct and is for educational purpose only. You are encouraged to consult your Accountant or Advisor before taking any decesion based on this calculator

Sheet Control_10E (hidden)
A1: Tax on income excluding arrears | M1: control button 89(1)
A2: year | B2: amount | C2: TAX | D2: surcharge | E2: edu. cess | F2: total | G2: OLD TAX REGIME | I2: NEW TAX REGIME | L2: =Assesment!P3 -> 2 | M2: 2 | N2: 20-21
A3: 2016-17 | B3: ='Form 10E'!D33 -> 0 | C3: =H3 -> 0 | E3: =ROUND((C3*0.03),0) -> 0 | F3: =C3+D3+E3 -> 0 | G3: =IF($B3>1000000, 125000+($B3-1000000)*0.3, IF($B3>500000, 25000+($B3-500000)*0.2, IF($B3>250000, ($B3-250000)*0.1, 0))) -> 0 | H3: =IF(B3<500001,G3-MIN(G3,5000),G3) -> 0
A4: 2017-18 | B4: ='Form 10E'!D34 -> 400000 | C4: =H4 -> 7500 | D4: =IF(B4>10000000,C4*0.15,0) -> 0 | E4: =ROUND((C4*0.03),0) -> 225 | F4: 7725 | G4: =IF($B4>1000000, 112500+($B4-1000000)*0.3, IF($B4>500000, 12500+($B4-500000)*0.2, IF($B4>250000, ($B4-250000)*0.05, 0))) -> 7500 | H4: =IF($B4<350001,G4-MIN(G4,2500),G4) -> 7500 | M4: 2 | N4: 21-22
A5: 2018-19 | B5: ='Form 10E'!D35 -> 700000 | C5: =H5 -> 52500 | E5: =ROUND((C5*0.04),0) -> 2100 | F5: 54600 | G5: =IF($B5>1000000, 112500+($B5-1000000)*0.3, IF($B5>500000, 12500+($B5-500000)*0.2, IF($B5>250000, ($B5-250000)*0.05, 0))) -> 52500 | H5: =IF($B5<350001,G5-MIN(G5,2500),G5) -> 52500
A6: 2019-20 | B6: ='Form 10E'!D36 -> 850000 | C6: =H6 -> 82500 | E6: 3300 | F6: 85800 | G6: =IF($B6>1000000, 112500+($B6-1000000)*0.3, IF($B6>500000, 12500+($B6-500000)*0.2, IF($B6>250000, ($B6-250000)*0.05, 0))) -> 82500 | H6: =IF(B6<500001,G6-MIN(G6,12500),G6) -> 82500
A7: 2020-21 | B7: ='Form 10E'!D37 -> 510000 | C7: =IF($M$2=2,K7,IF(B7<=500000,H7,G7)) -> 13500 | E7: 540 | F7: 14040 | G7: =ROUND(IF(B7<=250000,0,IF(B7<=500000,(B7-250000)*0.05,IF(B7<=1000000,12500+(B7-500000)*0.2,IF(B7>1000000,112500+(B7-1000000)*0.3,"0")))),0) -> 14500 | H7: =IF(AND(B7<=500000,G7>=12500),G7-12500,IF(AND(B7<=500000,G7<12500),0,G7)) -> 14500 | I7: =ROUND(IF(B7<=250000,0,IF(B7<=500000,(B7-250000)*0.05,IF(B7<=750000,12500+(B7-500000)*0.1,IF(B7<=1000000,37500+(B7-750000)*0.15,IF(B7<=1250000,75000+(B7-1000000)*0.2,IF(B7<=1500000,125000+(B7-1250000)*0.25,IF(B7>1500000,187500+(B7-1500000)*0.3,"0"))))))),0) -> 13500 | J7: =IF(AND(B7<=500000,I7>=12500),I7-12500,IF(AND(B7<=500000,I7<12500),0,I7)) -> 13500 | K7: =IF(B7<=500000,J7,I7) -> 13500
A8: 2021-22 | B8: ='Form 10E'!D38 -> 510000 | C8: =IF($M$4=2,K8,IF(B8<=500000,H8,G8)) -> 13500 | E8: 540 | F8: 14040 | G8: =ROUND(IF(B8<=250000,0,IF(B8<=500000,(B8-250000)*0.05,IF(B8<=1000000,12500+(B8-500000)*0.2,IF(B8>1000000,112500+(B8-1000000)*0.3,"0")))),0) -> 14500 | H8: =IF(AND(B8<=500000,G8>=12500),G8-12500,IF(AND(B8<=500000,G8<12500),0,G8)) -> 14500 | I8: =ROUND(IF(B8<=250000,0,IF(B8<=500000,(B8-250000)*0.05,IF(B8<=750000,12500+(B8-500000)*0.1,IF(B8<=1000000,37500+(B8-750000)*0.15,IF(B8<=1250000,75000+(B8-1000000)*0.2,IF(B8<=1500000,125000+(B8-1250000)*0.25,IF(B8>1500000,187500+(B8-1500000)*0.3,"0"))))))),0) -> 13500 | J8: =IF(AND(B8<=500000,I8>=12500),I8-12500,IF(AND(B8<=500000,I8<12500),0,I8)) -> 13500 | K8: =IF(B8<=500000,J8,I8) -> 13500
A9: 2022-23 | B9: ='Form 10E'!D39 -> 650000 | C9: =IF($M$9=2,K9,IF(B9<=500000,H9,G9)) -> 27500 | E9: 1100 | F9: 28600 | G9: =ROUND(IF(B9<=250000,0,IF(B9<=500000,(B9-250000)*0.05,IF(B9<=1000000,12500+(B9-500000)*0.2,IF(B9>1000000,112500+(B9-1000000)*0.3,"0")))),0) -> 42500 | H9: =IF(AND(B9<=500000,G9>=12500),G9-12500,IF(AND(B9<=500000,G9<12500),0,G9)) -> 42500 | I9: =ROUND(IF(B9<=250000,0,IF(B9<=500000,(B9-250000)*0.05,IF(B9<=750000,12500+(B9-500000)*0.1,IF(B9<=1000000,37500+(B9-750000)*0.15,IF(B9<=1250000,75000+(B9-1000000)*0.2,IF(B9<=1500000,125000+(B9-1250000)*0.25,IF(B9>1500000,187500+(B9-1500000)*0.3,"0"))))))),0) -> 27500 | J9: =IF(AND(B9<=500000,I9>=12500),I9-12500,IF(AND(B9<=500000,I9<12500),0,I9)) -> 27500 | K9: =IF(B9<=500000,J9,I9) -> 27500 | M9: 2 | N9: 22-23
A10: 2023-24 | B10: ='Form 10E'!D40 -> 670000 | C10: =IF($M$9=2,K10,IF(B10<=500000,H10,G10)) -> 22000 | E10: 880 | F10: 22880 | G10: =ROUND(IF(B10<=250000,0,IF(B10<=500000,(B10-250000)*0.05,IF(B10<=1000000,12500+(B10-500000)*0.2,IF(B10>1000000,112500+(B10-1000000)*0.3,"0")))),0) -> 46500 | H10: =IF(AND(B10<=500000,G10>=12500),G10-12500,IF(AND(B10<=500000,G10<12500),0,G10)) -> 46500 | I10: =ROUND(IF(B10<=300000,0,IF(B10<=600000,(B10-300000)*0.05,IF(B10<=900000,15000+(B10-600000)*0.1,IF(B10<=1200000,45000+(B10-900000)*0.15,IF(B10<=1500000,75000+(B10-1000000)*0.2,IF(B10>1500000,150000+(B10-1500000)*0.3,"0")))))),0) -> 22000 | J10: =IF(AND(B10<=700000,I10>=25000),I10-25000,IF(AND(B10<=500000,I10<25000),0,I10)) -> 22000 | K10: =IF(B10<=700000,J10,I10) -> 22000 | M10: 2 | N10: 23-24
A11: 2024-25 | B11: ='Form 10E'!$M$21 -> 961930 | C11: =IF($L$2="2",K11,IF(B11<=500000,H11,G11)) -> 46193 | E11: =ROUND((C11*0.04),0) -> 1848 | F11: =C11+D11+E11 -> 48041 | G11: =ROUND(IF(B11<=250000,0,IF(B11<=500000,(B11-250000)*0.05,IF(B11<=1000000,12500+(B11-500000)*0.2,IF(B11>1000000,112500+(B11-1000000)*0.3,"0")))),0) -> 104886 | H11: =IF(AND(B11<=500000,G11>=12500),G11-12500,IF(AND(B11<=500000,G11<12500),0,G11)) -> 104886 | I11: =ROUND(IF(B11<=300000,0,IF(B11<=700000,(B11-300000)*0.05,IF(B11<=1000000,20000+(B11-700000)*0.1,IF(B11<=1200000,50000+(B11-1000000)*0.15,IF(B11<=1500000,80000+(B11-1200000)*0.2,IF(B11>1500000,140000+(B11-1500000)*0.3,"0")))))),0) -> 46193 | J11: =IF(AND(B11<=700000,I11>=25000),I11-25000,IF(AND(B11<=500000,I11<25000),0,I11)) -> 46193 | K11: =IF(B11<=700000,J11,I11) -> 46193
A13: Tax on income including arrears
A14: year | B14: amount | C14: TAX | D14: surcharge | E14: edu. cess | F14: total | G14: OLD TAX REGIME | I14: NEW TAX REGIME
A15: 2016-17 | B15: ='Form 10E'!H33 -> 0 | C15: =H15 -> 0 | D15: =IF(B15>10000000,C15*0.15,0) -> 0 | E15: =ROUND((C15*0.03),0) -> 0 | F15: =C15+D15+E15 -> 0 | G15: =IF($B15>1000000, 125000+($B15-1000000)*0.3, IF($B15>500000, 25000+($B15-500000)*0.2, IF($B15>250000, ($B15-250000)*0.1, 0))) -> 0 | H15: =IF(B15<500001,G15-MIN(G15,5000),G15) -> 0
A16: 2017-18 | B16: ='Form 10E'!H34 -> 430000 | C16: =H16 -> 9000 | D16: =IF(B16>10000000,C16*0.15,0) -> 0 | E16: =ROUND((C16*0.03),0) -> 270 | F16: 9270 | G16: =IF($B16>1000000, 112500+($B16-1000000)*0.3, IF($B16>500000, 12500+($B16-500000)*0.2, IF($B16>250000, ($B16-250000)*0.05, 0))) -> 9000 | H16: =IF($B16<350001,G16-MIN(G16,2500),G16) -> 9000
A17: 2018-19 | B17: ='Form 10E'!H35 -> 740000 | C17: =H17 -> 60500 | E17: =ROUND((C17*0.04),0) -> 2420 | F17: 62920 | G17: =IF($B17>1000000, 112500+($B17-1000000)*0.3, IF($B17>500000, 12500+($B17-500000)*0.2, IF($B17>250000, ($B17-250000)*0.05, 0))) -> 60500 | H17: =IF($B17<350001,G17-MIN(G17,2500),G17) -> 60500
A18: 2019-20 | B18: ='Form 10E'!H36 -> 900000 | C18: =H18 -> 92500 | E18: 3700 | F18: 96200 | G18: =IF($B18>1000000, 112500+($B18-1000000)*0.3, IF($B18>500000, 12500+($B18-500000)*0.2, IF($B18>250000, ($B18-250000)*0.05, 0))) -> 92500 | H18: =IF(B18<500001,G18-MIN(G18,12500),G18) -> 92500
A19: 2020-21 | B19: ='Form 10E'!H37 -> 570000 | C19: =IF($M$2=2,K19,IF(B19<=500000,H19,G19)) -> 19500 | E19: 780 | F19: 20280 | G19: =ROUND(IF(B19<=250000,0,IF(B19<=500000,(B19-250000)*0.05,IF(B19<=1000000,12500+(B19-500000)*0.2,IF(B19>1000000,112500+(B19-1000000)*0.3,"0")))),0) -> 26500 | H19: =IF(AND(B19<=500000,G19>=12500),G19-12500,IF(AND(B19<=500000,G19<12500),0,G19)) -> 26500 | I19: =ROUND(IF(B19<=250000,0,IF(B19<=500000,(B19-250000)*0.05,IF(B19<=750000,12500+(B19-500000)*0.1,IF(B19<=1000000,37500+(B19-750000)*0.15,IF(B19<=1250000,75000+(B19-1000000)*0.2,IF(B19<=1500000,125000+(B19-1250000)*0.25,IF(B19>1500000,187500+(B19-1500000)*0.3,"0"))))))),0) -> 19500 | J19: =IF(AND(B19<=500000,I19>=12500),I19-12500,IF(AND(B19<=500000,I19<12500),0,I19)) -> 19500 | K19: =IF(B19<=500000,J19,I19) -> 19500
A20: 2021-22 | B20: ='Form 10E'!H38 -> 570000 | C20: =IF($M$4=2,K20,IF(B20<=500000,H20,G20)) -> 19500 | E20: 780 | F20: 20280 | G20: =ROUND(IF(B20<=250000,0,IF(B20<=500000,(B20-250000)*0.05,IF(B20<=1000000,12500+(B20-500000)*0.2,IF(B20>1000000,112500+(B20-1000000)*0.3,"0")))),0) -> 26500 | H20: =IF(AND(B20<=500000,G20>=12500),G20-12500,IF(AND(B20<=500000,G20<12500),0,G20)) -> 26500 | I20: =ROUND(IF(B20<=250000,0,IF(B20<=500000,(B20-250000)*0.05,IF(B20<=750000,12500+(B20-500000)*0.1,IF(B20<=1000000,37500+(B20-750000)*0.15,IF(B20<=1250000,75000+(B20-1000000)*0.2,IF(B20<=1500000,125000+(B20-1250000)*0.25,IF(B20>1500000,187500+(B20-1500000)*0.3,"0"))))))),0) -> 19500 | J20: =IF(AND(B20<=500000,I20>=12500),I20-12500,IF(AND(B20<=500000,I20<12500),0,I20)) -> 19500 | K20: =IF(B20<=500000,J20,I20) -> 19500
A21: 2022-23 | B21: ='Form 10E'!H39 -> 710000 | C21: =IF($M$9=2,K21,IF(B21<=500000,H21,G21)) -> 33500 | E21: 1340 | F21: =C21+D21+E21 -> 34840 | G21: =ROUND(IF(B21<=250000,0,IF(B21<=500000,(B21-250000)*0.05,IF(B21<=1000000,12500+(B21-500000)*0.2,IF(B21>1000000,112500+(B21-1000000)*0.3,"0")))),0) -> 54500 | H21: =IF(AND(B21<=500000,G21>=12500),G21-12500,IF(AND(B21<=500000,G21<12500),0,G21)) -> 54500 | I21: =ROUND(IF(B21<=250000,0,IF(B21<=500000,(B21-250000)*0.05,IF(B21<=750000,12500+(B21-500000)*0.1,IF(B21<=1000000,37500+(B21-750000)*0.15,IF(B21<=1250000,75000+(B21-1000000)*0.2,IF(B21<=1500000,125000+(B21-1250000)*0.25,IF(B21>1500000,187500+(B21-1500000)*0.3,"0"))))))),0) -> 33500 | J21: =IF(AND(B21<=500000,I21>=12500),I21-12500,IF(AND(B21<=500000,I21<12500),0,I21)) -> 33500 | K21: =IF(B21<=500000,J21,I21) -> 33500
A22: 2023-24 | B22: ='Form 10E'!H40 -> 677000 | C22: =IF($M$9=2,K22,IF(B22<=500000,H22,G22)) -> 22700 | E22: 908 | F22: 23608 | G22: =ROUND(IF(B22<=250000,0,IF(B22<=500000,(B22-250000)*0.05,IF(B22<=1000000,12500+(B22-500000)*0.2,IF(B22>1000000,112500+(B22-1000000)*0.3,"0")))),0) -> 47900 | H22: =IF(AND(B22<=500000,G22>=12500),G22-12500,IF(AND(B22<=500000,G22<12500),0,G22)) -> 47900 | I22: =ROUND(IF(B22<=300000,0,IF(B22<=600000,(B22-300000)*0.05,IF(B22<=900000,15000+(B22-600000)*0.1,IF(B22<=1200000,45000+(B22-900000)*0.15,IF(B22<=1500000,75000+(B22-1000000)*0.2,IF(B22>1500000,150000+(B22-1500000)*0.3,"0")))))),0) -> 22700 | J22: =IF(AND(B22<=500000,I22>=12500),I22-12500,IF(AND(B22<=500000,I22<12500),0,I22)) -> 22700 | K22: =IF(B22<=500000,J22,I22) -> 22700
A23: 2024-25 | B23: ='Form 10E'!$M$23 -> 1268930 | C23: =IF($L$2="2",K23,IF(B23<=500000,H23,G23)) -> 93786 | E23: 3751 | F23: 97537 | G23: 193179 | H23: 193179 | I23: =ROUND(IF(B23<=300000,0,IF(B23<=700000,(B23-300000)*0.05,IF(B23<=1000000,20000+(B23-700000)*0.1,IF(B23<=1200000,50000+(B23-1000000)*0.15,IF(B23<=1500000,80000+(B23-1200000)*0.2,IF(B23>1500000,140000+(B23-1500000)*0.3,"0")))))),0) -> 93786 | J23: =IF(AND(B23<=700000,I23>=25000),I23-25000,IF(AND(B23<=500000,I23<25000),0,I23)) -> 93786 | K23: =IF(B23<=700000,J23,I23) -> 93786
F27: 2017-17 | G27: IF($B3>1000000, 125000+($B3-1000000)*0.3, IF($B3>500000, 25000+($B3-500000)*0.2, IF($B3>250000, ($B3-250000)*0.1, 0)))
G28: IF(B3<500001,G3-MIN(G3,5000),G3)
F29: 2017-18 | G29: IF($B3>1000000, 112500+($B3-1000000)*0.3, IF($$B3>500000, 12500+($B3-500000)*0.2, IF($B3>250000, ($B3-250000)*0.05, 0)))
G30: IF($B3<350001,G3-MIN(G3,2500),G3)
F31: 2018-19 | G31: IF($B4>1000000, 112500+($B4-1000000)*0.3, IF($$B4>500000, 12500+($B4-500000)*0.2, IF($B4>250000, ($B4-250000)*0.05, 0)))
G32: IF($B4<350001,G4-MIN(G4,2500),G4)
F33: 2019-20 | G33: IF($B5>1000000, 112500+($B5-1000000)*0.3, IF($B5>500000, 12500+($B5-500000)*0.2, IF($B5>250000, ($B5-250000)*0.05, 0)))
G34: IF(B5<500001,G5-MIN(G5,12500),G5)

Sheet RULES (hidden)
A1: Brief detail of Information and RULES for(Rates,Deductions,Exemption etc.) ( Mini Ready Reckoner)
B2: Select and click any rule to know the brief detail about the taxation Rules & Informations.
A3: 1 | B3: New Tax Rates for Financial-Year 2020-21, Assessment Year 2021-2022 in Old and New Regime
A4: 2 | B4: Some Exempted Receipts / Special allowances & Perquisite which are not chargable to tax in Old regime
A5: 3 | B5: Some Exempted Income ( to be shown while Return filing)
A6: 4 | B6: T A X R U L E S & O T H E R U S E F U L I N F O R M A T I O N S
A7: I | B7: HRA exemption-u/s 10(13A)
A8: II | B8: Standard deduction u/s 16 (1a) instead of Transport allowance and Medical Reimbursement
A9: III | B9: Reimbursement of Medical bills
A10: IV | B10: u/s(5) LTA Exemption
A11: V | B11: Deduction u/s 24 and Relief u/s 80EE or 80EEA on interest on housing loan.
A12: VI | B12: u/s 80CCE & 80CCD Maximum Exemption
A13: VII | B13: Rajiv Gandhi Equity Savings Scheme
A14: VIII | B14: u/s 80D Medical Insurance
A15: IX | B15: u/s 80DD Deduction in respect of medical treatment of handicapped dependents
A16: X | B16: u/s 80DDB Deduction in respect of medical treatment for specified ailments or diseases
A17: XI | B17: u/s 80E Interest repayment on education loan
A18: XII | B18: u/s 80G Donations given for certain charities
A19: XIII | B19: u/s 80GG If Assesse is not getting HRA, but living in rented house,
A20: XIV | B20: u/s 80U If assesse have a permanent physical disability
A21: XV | B21: u/s 80TTA/80TTB Deduction on interest Income.
A22: 5 | B22: KNOW MORE about DEDUCTION under Section 80-C
A23: a | B23: Qualifying Investments u/s 80CCE
A24: b | B24: Provident Fund (PF) & Voluntary Provident Fund (VPF)
A25: c | B25: Life Insurance Premiums & Unit linked Insurance Plan (ULIP)
A26: d | B26: Public Provident Fund (PPF):
A27: e | B27: National Savings Certificate (NSC):
A28: f | B28: Home Loan Principal Repayment & Stamp Duty and Registration Charges for a home
A29: g | B29: Tuition fees for 2 children
A30: h | B30: Equity Linked Savings Scheme (ELSS)
A31: i | B31: 5-Yr bank fixed deposits (FDs) or 5-Yr post office time deposit (POTD)
A32: j | B32: Pension Funds or Pension Policies
A33: k | B33: Sukanya Samridhi Account
A34: l | B34: Infrastructure Bonds: NABARD rural bonds:
A35: m | B35: Senior Citizen Savings Scheme 2004 (SCSS)
A36: 6 | B36: Allowed Deductions & Exemptions under New Income Tax Regime
B37: TAX RATES as per Old Regime -- for Financial Year 2020-21 & Assesment Year 2021-22
B38: For Individual (MALE & FEMALE) ASSESSE
B39: Net Income Range Income Tax Rates
B40: Up to ₹ 2,50,000 NIL
B41: ₹ 2,50,001 to ₹ 5,00,000 5% on Total Income (-) ₹ 2,50,000
B42: ₹ 5,00,001 to ₹ 10,00,000 ₹12,500+20% of Total Income (-) ₹5,00,000
B43: More than ₹ 10.00,000 ₹1,12,500+30% of Total Income (-) ₹10,00,000
B44: Note- (u/s 87A- A rebate upto ₹ 12500/- for assessee with Income range upto ₹ 5,00,00 will be available in Both Old & New Regime) )
B45: For SENIOR CITIZEN ASSESSE (Above 60 Year ) attaining the age during the year
B46: Net Income Range Income Tax Rates
B47: Up to ₹3,00,000 NIL
B48: ₹3,00,001 to 5,00,000 5% of Total Income(-) ₹3,00,000
B49: ₹5,00,001 to 10,00,000 ₹10,000 +20% of Total Income (-) ₹5,00,000
B50: More than ₹10.00,000 ₹1,10,000 +30% of Total Income (-) ₹10,00,000
B51: Note- (u/s 87A- A rebate upto ₹ 10000/- for assessee with Income range upto ₹ 5,00,000)
B52: For VERY SENIOR CITIZEN ASSESSE (Above 80 Year ) attaining the age during the year
B53: Net Income Range Income Tax Rates
B54: Up to ₹5,00,000 NIL
B55: ₹5,00,001 to ₹10,00,000 20% of Total Income (-) ₹10,00,000
B56: More than ₹10,00,000 ₹1,00,000 +30% of Total Income (-) ₹10,00,000
A57: Back ↑ | B57: Note: 1. Education and Health Cess is 4% of income tax from all Assesse. (as per Finance Act 2018) . 2. Surcharge on income tax @10% for income above ₹50 Lakh & 15% for income above ₹1crore
B58: TAX RATES as per New Regime - for financial Year 2020-21 & Assesment Year 2021-22 ( The new scheme is optional in nature )
B59: For Individual (>60Yrs)., Sr. Citizen (60+Yrs.) & Very Sr. Citizen (80+Yrs.) ASSESSE
B60: Up to – 250000 – Nil
B61: ₹ 2,50,001 to ₹ 5,00,000 5% on Total Income (-) ₹2,50,000
B62: ₹ 5,00,001 to ₹ 7,50,000 ₹12,500+10% of Total Income (-) ₹5,00,000
B63: ₹ 7,50,001 to ₹ 10,00,000 ₹37,500+15% of Total Income (-) ₹7,50,000
B64: ₹ 10,00,001 to ₹ 12,50,000 ₹75,000+20% of Total Income (-) ₹10,00,000
B65: ₹ 12,50,001 to ₹ 15,00,000 ₹1,25,000+25% of Total Income (-) ₹12,50,000
B66: ₹ 15,00,001 & above ₹1,87,500+30% of Total Income (-) ₹15,00,000
A67: Back ↑ | B67: Note- (u/s 87A- A rebate upto ₹ 12500/- for assessee with Income range upto ₹ 5,00,00 will be available in Both Old & New Regime) )
B69: Some Exempted Receipts /Special allowances & Perquisite which are not chargable to tax are
B70: Exempted Receipts - 1. L.T.A (as per Rule)
A71: Back ↑ | B71: Special allowances Exempted u/s 10(14) 1. Uniform Allowance (granted to meet the expenditure incurred on purchase or maintenance of uniform to be worn during performance of Official Duty) 2. Helper Allowance ( granted to meet exependiture incurred on helper for performance of official duty) 3. Academic Allowance (granted for encouraging academic, research & training pursuits) including Newspaper, Generals etc.) 4. Children Education Allowance ( ₹100 P.M. per child / (₹300 for hostel expenditure) Max of 2 children) 5. Convayance allowance ( granted to meet the expenditure incurred on convayance, while performing official duty. . ( Expenditure incured for covering journey between office and residence is not treated as expenditure in performance of official duty. )
B72: Deduction available u/s -16 1.Standard deduction of Rs. 50000/- is granted to all salaried employee.whenever Transport allowance and Medical reimbursement are abolished 2. Entertainment allowance (for Govt Employees) Max ₹5000/- 3. Professional tax - Professional tax paid by employeer is deducted from Gross salary.
B73: Perquisite not chargable to tax
B74: Free food and beverage 1. Food and non-alcoholic beverages provided in working hours in remote area or an offshore instalation are exempted to tax 2. Tea, coffee or non-alcoholic beverages and snaks in working hours are tax free perquisites. 3. Meals (Lunch and / or dinner) in office hours is not taxable. If cost to the employeris ₹50 (or Less) per meal.
B75: Some Exempted Income are ( to be shown while Return filing)
B76: 1. Withdrawal / Maturity / Interest received from PF,PPF,Sukanya Samridhi Account, Life Insurance policy, Agriculture. (Max up to ₹5000/- )
B77: 2 Long Term Capital Gain From Shares
B78: 3. Interest on Saving Bank & Post Office A/c up to ₹ 10,000/- ( Sec-80TTE) for Individual
B79: 4. Interest on Saving Bank & Post Office A/c, FD, RD etc up to ₹ 50,000/- (Sec-80TTE) for Sr. Citizen
B80: Please Note :
B81: (i) Interest earned from all sources are to be included. All interest income (including saving Bank A/C (above ₹10,000 for Individual & ₹50,000 for Sr. Citizen )
A82: Back ↑ | B82: (II) As per clarification from IT department, all perquisites such as rent-free accommodation, company provided car, free or concessional education facilities, employee stock option plan, free club membership, company provided credit card, gift vouchers, meal coupons, hotel stay beyond 15 days, are fully taxable.
A83: Back ↑ | B83: T A X R U L E S & O T H E R U S E F U L I N F O R M A T I O N S for
A84: I | B84: House Rent Allowance exemption-10(13A) = Least amount of anyone (i) 40% of Salary (50%, if house situated in Mumbai, Calcutta, Delhi or Madras) . or (ii) Actual HRA Recived . or (iii) Rent paid minus 10% of salary * Salary= Basic + DA (if part of retirement benefit) + Turnover based Commission Note i. Fully Taxable, if HRA is received by an employee who is living in his own house or if he does not pay any rent ii. It is mandatory for employee to report PAN of the landlord to the employer if rent paid is more than ₹ 1,00,000 [Circular No. 08 /2013 dated 10th October, 2013]. (In case the landlord does not have PAN, employee should submit a declaration stating the same along with the landlord’s details.)
A85: II | B85: Standard deduction of ₹50000/- is allowed to all salaried employee. In Finace act 2019 standard deduction of Rs. 50,000/- has allowed to all salaried employees. But Transport allowance & Medical Reimburement are abolished. Whenever an exemption of up to ₹3200/- per month is cotinue for disabled employees (Blind and Handicapped employees) . Transport Allowance is granted to an employee to meet expenditure on commuting between place of residence and place of duty
A86: III | B86: Reimbursement of Medical bills has withdrawan and not allowed from finance act 2018. Now it has become a part of Standard deduction of Rs. 50,000/-
A87: IV | B87: u/s(5) LTA is exempt to the tune of economy class Train/ Air /Recognised public Transport fare for the family to any destination in India, by the shortest route. LTA can be claimed twice in a block of 4 calendar year. The current block is from 01.01.2018 to 31.12.2021. For claim, it is must to provide originals tickets etc.
A88: V(a) New Change | B88: u/s 24 and 80 EE/ 80EEA There is an Exemption for interest on housing loan.(for Self occupied Residence). If the loan was taken before Apr 1, 1999 exemption is limited to ₹30,000/- per year. If the loan was taken after Apr 1, 1999 exemption is limited to ₹2,00,000/- per year if the house is self-occupied; This exemption is available on accrual basis, which means if interest has accrued, you can claim exemption, irrespective of whether you've paid it or not. 80EE - In finance bill 2016 (an additional rebate of ₹.50.000/- was given to those assesse, who purchase self ocupied single house and loan has sanctioned between 01/04/2016 to 31/03/2018 with maximum value of ₹ 50 Lacs and sanctioned home loan up to 35 Lacs.). The deduction is allowed untill the loan is repaid. Sec 80EEA - In Finance bill 2019 ( a new rebate for purchase first house has been introduced to extend the tax benefit upto Rs. 1,50,000/- for affordable house of stamp duty valued up to Rs. 45 Lacs and loan sanctioned during the period 01/04/2019 to 31/03.2021)
A89: (b) | B89: If you have rented out your house, Whole the interest will be eligible for deduction. (after deducting property tax and standard maintenance expenses from rent recived). But maximum interest allowed for deduction is 2,00,000/- only and rest of interest will be adjust while filing of ITR as carryforward of losses.
A90: VI | B90: u/s 80CCE- Maximum Exemption up to ₹1,50,000/- Investments up to ₹1.5 lac in PF, VPF, PPF, Employee contribution in NPS,Insurance Premium, Housing loan principal repayment, NSC, ELSS, long term bank Fixed Deposit, Post Office Term Deposit, etc. are deductible from the taxable income. There is no limit on individual items, (for example) all 1.5 lac can be invested in NSC or PPF etc.
A91: VII | B91: u/s 80CCD(1): Contribution to NPS (by Employee) The Finance Act, 2015 provides that, The contribution made by the employee to the NPS will be subject to the limit of ₹1,50,000.(Sec 80CCE) Section 80CCD (2): Contribution to NPS (by Employer) - Contribution made by the Central Government or any other employer to NPS shall be excluded while computing the limit of Rs1,50,000 Deduction available for the amount paid or deposited by the employer of the assessee in a pension scheme notified or as may be notified by the Central Government subject to a maximum of 10% of salary in the financial year. Section 80CCD(1B): Additional depoisiting to New Pension Scheme (NPS) account in Banks/PO - It will provide an additional deduction of upto ₹ 50,000 over and above the limit of ₹ 1.50 lakh in respect of contributions made to NPS account.
A92: VIII | B92: u/s 80CCG - Rajiv Gandhi Equity Savings Scheme exemption has been abolished in Fianance Act 2017.
A93: IX | B93: u/s 80D Medical Insurance Premiums+ Critical Insurance cover Premiuma +Health checkup+ CGHS/ SGHS contributions (Mediclaim Insurance & Critical illness Cover from health Insurance Co. or Life Insurance Co. with contribution in CGHS/SGHS & Preventive Health Check upto INR.5000/-) for Self Family & Parents <60 Yrs. or Sr. Citizen. For Very Sr. Citizen abobe 80 Yrs. Expenses on medical treatment. Premium & Health checkup is exempt up to 1.₹. 25000/- for Self & Family less than 60Yrs. 2.₹ 50000/- for Self, Family & Parents below 60 Yrs (25000/-+25000/-) 3. ₹ 75000/ for Self, Family & Parents Sr. Citizen – (25000/-+50000/-) 4. ₹ 50000/- sr. Citizen above 60 Yrs Self & Family
A94: X | B94: u/s 80DD Deduction in respect of medical treatment of handicapped dependents is limited to ₹75,000/- per year if the disability is less than 80% and Rs1,25,000/- per year if the disability is more than 80%
A95: XI | B95: u/s 80DDB Deduction in respect of medical treatment for specified ailments or diseases for the assesse or dependent can be claimed up to ₹40,000/- per year. If the person being treated is a senior citizen (Age 60+), the exemption can go up to ₹1,00,000/- but any amount received under Medical Insurance Policy will be reduced from the amount of deduction allowed. The Diseases and ailments specified under rule 11DD are. (1) Neurological diseases being demetia, dystonia musculorum deformans, motor neuron disease, ataxia, chorea, hemiballismus, aphasia and parkisons disease, (2) cancer, (3) AIDS, (4)Chronic renal failure, (5) hemophilia, and (6) thalassaemia. Note:The assessee will be required to obtain a prescription/Certificate from a specialist doctor whether from Govt or Pvt. for the purpose of availing this deduction.
A96: XII | B96: u/s 80E Interest repayment on education loan (taken for higher education from a university of self & dependents) is completely tax exempt
A97: XIII | B97: u/s 80G Donations given for certain charities are tax exempt.NGO,Trust etc. are exempt to the tune of 50%, whereas Govt funds are 100%. u/s 80GGA - Donations for scientific, social or statistical research or rural development programme or for carrying out an eligible project or scheme or National Urban Poverty Eradication Fund u/s 80GGC -Donation to any political party/electoral trust
A98: XIV New | B98: u/s 80GG If you are not getting HRA, but living in rented house, an exemption is available. This will be calculated as minimum of (25% of total income or rent paid - 10% of total income or ₹ 60,000/- per year)
A99: XV | B99: u/s 80U who suffers from not less than 40 per cent of any disability is eligible for deduction to the extent of ₹ 75,000/- and in case of severe disability to the extent of ₹ 1,25,000/-
A100: XVI | B100: u/s 80TTA/80TTB introduced through Finance Act, 2012. Section 80TTA provides a deduction of up to ₹10,000 on income from interest on saving bank accounts to Individual asessee and Sec 80TTB introduced through Finance Act, 2018. Which provides a deduction of up to ₹50,000 on income from interest Income from bank & Post Offices ( Savings,FD, RD, MIS,SCSS etc. ) to Sr. Citizen asessee
A101: Back ↑ | B101: KNOW MORE about DEDUCTION under Section 80-C and chapter VIA
B102: Section 80C of the Income Tax Act allows certain investments and expenditure to be deduct from total income - One must plan investments well and spread it out across the various instruments specified under this section to avail maximum tax benefit. There are no sub-limits and is irrespective of how much you earn and under which tax bracket you fall. Most of the Income Tax payee try to save tax by saving under Section 80C of the Income Tax Act. However, it is important to know the Section in total. so that one can make best use of the options available for deduction under income tax Act. One important point to note that one can not only save tax by undertaking the specified investments, but some expenditure which you normally incur can also give you the tax exemptions.
A103: Back ↑ | B103: Qualifying Investments u/s 80CCE are
A104: a | B104: Provident Fund (PF) & Voluntary Provident Fund (VPF) PF is automatically deducted from your salary. your contribution [12% of Basic] (i.e., employee’s contribution) is counted towards section 80C investments. You also have the option to contribute additional amounts through voluntary contributions (VPF). Current rate of interest is 8.5% per annum (p.a.) and is tax-free.
A105: b | B105: Life Insurance Premiums: Any amount that you pay towards life insurance premium in Life Insurance Corporation (LIC) or any other Insurance CO.for yourself, your spouse or your children can also be included in Section 80C deduction. If you are paying premium for more than one insurance policy, all the premiums will be included. also premium paid for ULIP will also be treated as Premium paid for Life Insurance Policies. Unit linked Insurance Plan : ULIP stands for Unit linked Saving Schemes. ULIPs cover Life insurance with benefits of equity investments.They have attracted the attention of investors and tax-savers not only because they help us save tax but they also perform well to give decent returns in the long-term. IMP : Total Amount Received at Maturity, Survival Benefits, , Withdrawl in Insurance Policies is Tax Free and fully exempteed u/s 10(10D).
A106: c | B106: Public Provident Fund (PPF): Among all the assured returns small saving schemes, Public Provident Fund (PPF) is one of the best. Current rate of interest is 8% tax-free and the normal maturity period is 15 years Minimum amount of contribution is ₹500 and maximum is ₹1,50,000.(New Change) from Finance Act 2014
A107: d | B107: National Savings Certificate (NSC): National Savings Certificate (NSC) is a 5-Yr small savings instrument eligible for section 80C tax benefit. Rate of interest is 8.58% compounded half-yearly, i.e. If you invest ₹100, it becomes ₹150.90 after five years. The interest accrued every year is liable to tax (i.e. to be included in your taxable income) but the interest is also deemed to be reinvested and thus eligible for section 80C deduction.
A108: e | B108: Home Loan Principal Repayment & Stamp Duty and Registration Charges for a home Loan The Equated Monthly Installment (EMI) that you pay every month to repay your home loan consists of two components – Principal and Interest.The principal component of the EMI qualifies for deduction under Sec 80C. Even the interest component can save you significant income tax – but that would be under Section 24 of the Income Tax Act. The amount you pay as stamp duty when you buy a house, and the amount you pay for the registration of the documents of the house can be claimed as deduction under section 80C in the year of purchase of the house.
A109: f | B109: Tuition fees for 2 children Apart form the above major investments expenses for children’s education (Only Tution Fee (for which you need receipts)), can be claimed as deductions under Sec 80C.
A110: g | B110: Equity Linked Savings Scheme (ELSS): There are some mutual fund (MF) schemes specially created for offering you tax savings, and these are called Equity Linked Savings Scheme, or ELSS. The investments that you make in ELSS are eligible for deduction under Sec 80C.
A111: h | B111: 5-Yr bank fixed deposits (FDs): Tax-saving fixed deposits (FDs) of scheduled banks with tenure of 5 years are also entitled for section 80C deduction. 5-Yr post office time deposit (POTD) scheme: POTDs are similar to bank fixed deposits. Although available for varying time duration like one year, two year, three year and five year, only 5-Yr post-office time deposit (POTD) – which currently offers 7.5 per cent rate of interest –qualifies for tax saving under section 80C. Effective rate works out to be 7.71% per annum (p.a.) as the rate of interest is compounded quarterly but paid annually. The Interest is entirely taxable.
A112: i | B112: Pension Funds or Pension Policies – Section 80CCC: This section – Sec 80CCC – stipulates that an investment in pension funds is eligible for deduction from your income. Section 80CCC investment limit is clubbed with the limit of Section 80C – it means that the total deduction available for 80CCC and 80C is ₹1.5 Lakh.This also means that your investment in pension funds upto ₹1.5 Lakh can be claimed as deduction u/s 80CCC. However, as mentioned earlier, the total deduction u/s 80C and 80CCC can not exceed ₹1.5 Lakh.
A113: j | B113: Infrastructure Bonds: These are also popularly called Infra Bonds. These are issued by infrastructure companies, and not the government. The amount that you invest in these bonds can also be included in Sec 80C deductions. NABARD rural bonds: There are two types of Bonds issued by NABARD (National Bank for Agriculture and Rural Development): NABARD Rural Bonds and Bhavishya Nirman Bonds (BNB). Out of these two, only NABARD Rural Bonds qualify under section 80C.
A114: k | B114: Senior Citizen Savings Scheme 2004 (SCSS): A recent addition to section 80C list, Senior Citizen Savings Scheme (SCSS) is the most lucrative scheme among all the small savings schemes but is meant only for senior citizens. Current rate of interest is 9% per annum payable quarterly. Please note that the interest is payable quarterly instead of compounded quarterly. Thus, unclaimed interest on these deposits won’t earn any further interest. Interest income is chargeable to tax.
A115: l | B115: Sukanya Samridhi Account : Contribution made in a financial year in Sukanya Samriddhi Account will also be eligible for income tax exemption under Section 80C up to a maximum of ₹ 1,50,000/-
A117: Back ↑ | B117: Allowed Deductions & Exemptions under New Income Tax Regime
B118: 1. Deduction under sub-section (2) of section 80CCD (employer contribution on account of employee in notified pension scheme) if added in Gross salary
B119: 2.Transport Allowance granted to Divyang Employee for commute between place of residence and duty
B121: The income tax Exemption on following incomes still available in the new regime
B122: · Death-cum-retirement benefit
B123: · Commutations of pensions
B124: · Leave encashment on retirement
B125: · Amount received on VRS up to Rs 5 lakh
B126: · Employee Provident Fund money
B127: · Money received as scholarship for education
B128: · Cash received as awards constituted in public interest
B129: · Short-term withdrawals and maturity amount from the National Pension Scheme

Sheet Sheet1 (hidden)
